Workbook

Sheet Introduction
A1: ¾ | C1: EQUILIBRATOR

Sheet N2O4
A2: =IF($Y$5=1,"Pressure:","Volume:") -> Pressure: | C2: 1 | D2: =IF($Y$5=1,"atm","L") -> atm | Y2: 2 | Z2: Celsius | AA2: A= | AB2: -3.54
A3: Temperature: | C3: =Y9-273*IF($Y$2=1,1,0) -> 404 | D3: =IF(Y2=1,"C","K") -> K | Z3: Kelvin
A4: Reaction: | B4: 1 | C4: N2O4 | E4: 2 | F4: NO2 | Y4: =(VLOOKUP(AB11,Z13:AD116,3)+(VLOOKUP(AB11,Z13:AD116,5)-VLOOKUP(AB11,Z13:AD116,3))*(AB11-VLOOKUP(AB11,Z13:AC116,1))/(VLOOKUP(AB11,Z13:AC116,4)-VLOOKUP(AB11,Z13:AC116,1)))/AB11/10000 -> 0.001484920896 | Z4: Equilibrium Sensitivity | AA4: B= | AB4: -6374.8
A5: initial (moles): | C5: 2 | F5: 1 | H5: Units: | Y5: 1 | Z5: Constant Pressure | AA5: C= | AB5: 4.6568
A6: =IF($Y$7=1,"initial (atm):","initial (M):") -> initial (atm): | C6: =IF($Y$5=1,$C$2*C5/SUM($C$5:$F$5),0.08205821*$Y$9*C5/$C$2)/(0.08205821*$Y$9)^($Y$7-1) -> 0.6666666667 | F6: =IF($Y$5=1,$C$2*F5/SUM($C$5:$F$5),0.08205821*$Y$9*F5/$C$2)/(0.08205821*$Y$9)^($Y$7-1) -> 0.3333333333 | H6: =IF($Y$7=1,"Qpi = ","Qci = ") -> Qpi = | I6: =IF(C6=0,"∞",(F6)^$E$4/(C6)^$B$4) -> 0.1666666667 | K6: Initial Reaction Quotient | Z6: Constant Volume | AA6: D= | AB6: -0.013828
A7: change (moles): | C7: =MIN(F5/E4)-(Y11/29999)*(MIN(C5/B4)+MIN(F5/E4)) -> -1.919913997 | F7: =-E4*C7/B4 -> 3.839827994 | H7: x = | I7: =F7/E4 -> 1.919913997 | J7: mol | K7: Extent of Reaction | Y7: 1 | Z7: Atmospheres | AA7: E= | AB7: 7.1936e-06
A8: =IF(ABS(I9/I10-1)<Y4,"equilibrium (moles):","equilibrating ... (moles):") -> equilibrating ... (moles): | C8: =C7+C5 -> 0.08008600287 | F8: =F7+F5 -> 4.839827994 | Z8: Molarity | AA8: F= | AB8: -1.9518e-09
A9: =IF(ABS(I9/I10-1)<Y4,IF($Y$7=1,"equilibrium (atm):","equilibrium (M)"),IF($Y$7=1,"equilibrating ... (atm):","equilibrating…(M)")) -> equilibrating ... (atm): | C9: =IF($Y$5=1,$C$2*(C5+C7)/SUM($C$5:$F$5,$C$7:$F$7),(C5+C7)*0.08205821*$Y$9/$C$2)/(0.08205821*$Y$9)^($Y$7-1) -> 0.0162779274 | F9: =IF($Y$5=1,$C$2*(F5+F7)/SUM($C$5:$F$5,$C$7:$F$7),(F5+F7)*0.08205821*$Y$9/$C$2)/(0.08205821*$Y$9)^($Y$7-1) -> 0.9837220726 | H9: =IF($Y$7=1,"Qp = ","Qc = ") -> Qp = | I9: =(F9)^E4/(C9)^B4 -> 59.44916034 | K9: Reaction Quotient | L9: =I9/I10-1 -> -0.001955830626 | Y9: 404 | Z9: Temperature (k) | AA9: lnK = | AB9: =AB2+AB4/Y9+AB5*LN(Y9)+AB6*Y9+AB7*Y9^2+AB8*Y9^3 -> 4.087079245
H10: =IF($Y$7=1,"Kp = ","Kc = ") -> Kp = | I10: =IF($Y$7=1,$AB$11,$AB$11*(0.08205821*$Y$9)^(B4-E4)) -> 59.56566068 | K10: Equilibrium Constant | AB10: (LnK = A + B/T +ClnK + DT + ET^2 + FT^3)
A11: =IF(ABS($I$9/$I$10-1)<Y4,"",IF($I$9>$I$10,"¬","®")) -> ® | B11: =IF(ABS(I9/I10-1)<Y4,"Equilibrium!",IF(I9>I10,"Too far.","Not far enough…")) -> Not far enough… | F11: =IF(ABS($I$9/$I$10-1)<Y4,"",IF($I$9>$I$10,"¬","®")) -> ® | H11: G = | I11: =0.00831451*$Y$9*I9*(LN(I9/I10)-1)/I10 -> -3.359055611 | J11: kJ | K11: Gibb's Free Energy | Y11: 29038 | Z11: Slider Position (1 - 29998) | AA11: Kp = | AB11: =EXP(AB9) -> 59.56566068
H12: ΔG = | I12: =0.00831451*$Y$9*LN(I9/I10) -> -0.006576189468 | J12: kJ/mol | Y12: x | Z12: Qp | AA12: G
Y13: =-F5/E4 -> -0.5 | Z13: 0 | AA13: 0 | AB13: =(Z14-Z13)/(Y14-Y13) -> 0.0016000016 | AC13: =Z14 -> 4.000004e-06 | AD13: =AB14 -> 0.006400102402
Y14: =($C$5/$B$4+$F$5/$E$4)/1000+Y13 -> -0.4975 | Z14: =IF($Y$5=1,$C$2/($F$5+$C$5+($E$4-$B$4)*Y14),(0.08205821*$Y$9)/$C$2)^($E$4-$B$4)*($F$5+$E$4*Y14)^$E$4/($C$5-$B$4*Y14)^$B$4 -> 4.000004e-06 | AA14: =0.00831451*$Y$9*Z14*(LN(Z14/$AB$11)-1)/$AB$11 -> -3.951160981e-06 | AB14: =(Z15-Z13)/(Y15-Y13) -> 0.006400102402 | AC14: =Z15 -> 6.400102402e-05 | AD14: =AB15 -> 0.01760177778
Y15: =(MIN($C$5/$B$4)+$F$5/$E$4)/250+Y13 -> -0.49 | Z15: 6.400102402e-05 | AA15: -5.321268789e-05 | AB15: =(Z16-Z14)/(Y16-Y14) -> 0.01760177778 | AC15: 0.000400040004 | AD15: 0.0384159808
Y16: =(MIN($C$5/$B$4)+$F$5/$E$4)/100+Y13 -> -0.475 | Z16: 0.000400040004 | AA16: -0.0002912636015 | AB16: 0.0384159808 | AC16: 0.001600640256 | AD16: 0.06406405829
Y17: =(MIN($C$5/$B$4)+$F$5/$E$4)/100+Y16 -> -0.45 | Z17: 0.001600640256 | AA17: -0.00104024415 | AB17: 0.06406405829 | AC17: 0.003603242919 | AD17: 0.09619232308
Y18: =(MIN($C$5/$B$4)+$F$5/$E$4)/100+Y17 -> -0.425 | Z18: 0.003603242919 | AA18: -0.002176841055 | AB18: 0.09619232308 | AC18: 0.00641025641 | AD18: 0.1284363948
Y19: -0.4 | Z19: =IF($Y$5=1,$C$2/($F$5+$C$5+($E$4-$B$4)*Y19),(0.08205821*$Y$9)/$C$2)^($E$4-$B$4)*($F$5+$E$4*Y19)^$E$4/($C$5-$B$4*Y19)^$B$4 -> 0.00641025641 | AA19: -0.003664410645 | AB19: 0.1284363948 | AC19: 0.01002506266 | AD19: 0.1608354178
Y20: -0.375 | Z20: 0.01002506266 | AA20: -0.005477994147 | AB20: 0.1608354178 | AC20: 0.0144520273 | AD20: 0.1934290051
Y21: -0.35 | Z21: 0.0144520273 | AA21: -0.007598941334 | AB21: 0.1934290051 | AC21: 0.01969651291 | AD21: 0.2262573606
Y22: -0.325 | Z22: 0.01969651291 | AA22: -0.01001262361 | AB22: 0.2262573606 | AC22: 0.02576489533 | AD22: 0.2593614042
Y23: -0.3 | Z23: 0.02576489533 | AA23: -0.01270723492 | AB23: 0.2593614042 | AC23: 0.03266458312 | AD23: 0.2927829015
Y24: -0.275 | Z24: 0.03266458312 | AA24: -0.01567308128 | AB24: 0.2927829015 | AC24: 0.0404040404 | AD24: 0.3265645983
Y25: -0.25 | Z25: 0.0404040404 | AA25: -0.0189021243 | AB25: 0.3265645983 | AC25: 0.04899281304 | AD25: 0.3607503608
Y26: -0.225 | Z26: 0.04899281304 | AA26: -0.02238767023 | AB26: 0.3607503608 | AC26: 0.05844155844 | AD26: 0.395385322
Y27: -0.2 | Z27: 0.05844155844 | AA27: -0.02612414884 | AB27: 0.395385322 | AC27: 0.06876207914 | AD27: 0.4305160364
Y28: -0.175 | Z28: 0.06876207914 | AA28: -0.03010695093 | AB28: 0.4305160364 | AC28: 0.07996736026 | AD28: 0.4661906423
A29: Developed by Prof. Douglas A. Vander Griend, Calvin College, Grand Rapids, MI | Y29: -0.15 | Z29: 0.07996736026 | AA29: -0.03433230578 | AB29: 0.4661906423 | AC29: 0.09207161125 | AD29: 0.5024590345
Y30: -0.125 | Z30: 0.09207161125 | AA30: -0.03879718694 | AB30: 0.5024590345 | AC30: 0.105090312 | AD30: 0.5393730473
Y31: -0.1 | Z31: 0.105090312 | AA31: -0.04349923877 | AB31: 0.5393730473 | AC31: 0.1190402636 | AD31: 0.5769866499
Y32: -0.075 | Z32: 0.1190402636 | AA32: -0.04843671853 | AB32: 0.5769866499 | AC32: 0.1339396445 | AD32: 0.6153561552
Y33: -0.05 | Z33: 0.1339396445 | AA33: -0.05360845045 | AB33: 0.6153561552 | AC33: 0.1498080714 | AD33: 0.6545404437
Y34: -0.025 | Z34: 0.1498080714 | AA34: -0.05901378932 | AB34: 0.6545404437 | AC34: 0.1666666667 | AD34: 0.6946012045
Y35: 1.595945598e-16 | Z35: 0.1666666667 | AA35: -0.06465259161 | AB35: 0.6946012045 | AC35: 0.1845381316 | AD35: 0.7356031946
Y36: 0.025 | Z36: 0.1845381316 | AA36: -0.07052519293 | AB36: 0.7356031946 | AC36: 0.2034468264 | AD36: 0.7776145192
Y37: 0.05 | Z37: 0.2034468264 | AA37: -0.0766323907 | AB37: 0.7776145192 | AC37: 0.2234188576 | AD37: 0.8207069355
Y38: 0.075 | Z38: 0.2234188576 | AA38: =0.00831451*$Y$9*Z38*(LN(Z38/$AB$11)-1)/$AB$11 -> -0.08297543126 | AB38: 0.8207069355 | AC38: 0.2444821732 | AD38: 0.864956182
Y39: 0.1 | Z39: 0.2444821732 | AA39: -0.0895560009 | AB39: 0.864956182 | AC39: 0.2666666667 | AD39: 0.9104423366
Y40: 0.125 | Z40: 0.2666666667 | AA40: -0.09637622038 | AB40: 0.9104423366 | AC40: 0.29000429 | AD40: 0.9572502067
Y41: 0.15 | Z41: 0.29000429 | AA41: -0.1034386425 | AB41: 0.9572502067 | AC41: 0.314529177 | AD41: 1.005469755
Y42: 0.175 | Z42: 0.314529177 | AA42: -0.1107462527 | AB42: 1.005469755 | AC42: 0.3402777778 | AD42: 1.055196567
Y43: 0.2 | Z43: 0.3402777778 | AA43: -0.1183024722 | AB43: 1.055196567 | AC43: 0.3672890053 | AD43: 1.106532357
Y44: 0.225 | Z44: 0.3672890053 | AA44: -0.1261111634 | AB44: 1.106532357 | AC44: 0.3956043956 | AD44: 1.159585531
Y45: 0.25 | Z45: 0.3956043956 | AA45: -0.1341766391 | AB45: 1.159585531 | AC45: 0.4252682819 | AD45: 1.214471803
Y46: 0.275 | Z46: =IF($Y$5=1,$C$2/($F$5+$C$5+($E$4-$B$4)*Y46),(0.08205821*$Y$9)/$C$2)^($E$4-$B$4)*($F$5+$E$4*Y46)^$E$4/($C$5-$B$4*Y46)^$B$4 -> 0.4252682819 | AA46: -0.1425036723 | AB46: 1.214471803 | AC46: 0.4563279857 | AD46: 1.271314869
Y47: 0.3 | Z47: 0.4563279857 | AA47: -0.1510975099 | AB47: 1.271314869 | AC47: 0.4888340254 | AD47: 1.33024716
Y48: 0.325 | Z48: 0.4888340254 | AA48: -0.1599638886 | AB48: 1.33024716 | AC48: 0.5228403437 | AD48: 1.391410661
Y49: 0.35 | Z49: 0.5228403437 | AA49: -0.1691090531 | AB49: 1.391410661 | AC49: 0.5584045584 | AD49: 1.454957831
Y50: 0.375 | Z50: 0.5584045584 | AA50: -0.1785397772 | AB50: 1.454957831 | AC50: 0.5955882353 | AD50: 1.521052616
Y51: 0.4 | Z51: 0.5955882353 | AA51: -0.1882633879 | AB51: 1.521052616 | AC51: 0.6344571892 | AD51: 1.589871573
Y52: 0.425 | Z52: 0.6344571892 | AA52: -0.1982877922 | AB52: 1.589871573 | AC52: 0.6750818139 | AD52: 1.661605125
Y53: 0.45 | Z53: 0.6750818139 | AA53: -0.2086215075 | AB53: 1.661605125 | AC53: 0.7175374455 | AD53: 1.736458959
Y54: 0.475 | Z54: 0.7175374455 | AA54: -0.2192736952 | AB54: 1.736458959 | AC54: 0.7619047619 | AD54: 1.814655587
Y55: 0.5 | Z55: 0.7619047619 | AA55: -0.2302541981 | AB55: 1.814655587 | AC55: 0.8082702248 | AD55: 1.896436088
Y56: 0.525 | Z56: 0.8082702248 | AA56: -0.2415735817 | AB56: 1.896436088 | AC56: 0.8567265663 | AD56: 1.982062073
Y57: 0.55 | Z57: 0.8567265663 | AA57: -0.2532431806 | AB57: 1.982062073 | AC57: 0.9073733284 | AD57: 2.07181788
Y58: 0.575 | Z58: 0.9073733284 | AA58: -0.2652751488 | AB58: 2.07181788 | AC58: 0.9603174603 | AD58: 2.166013055
Y59: 0.6 | Z59: 0.9603174603 | AA59: -0.2776825164 | AB59: 2.166013055 | AC59: 1.015673981 | AD59: 2.264985142
Y60: 0.625 | Z60: 1.015673981 | AA60: -0.2904792513 | AB60: 2.264985142 | AC60: 1.073566717 | AD60: 2.369102843
Y61: 0.65 | Z61: 1.073566717 | AA61: -0.3036803281 | AB61: 2.369102843 | AC61: 1.134129123 | AD61: 2.478769602
Y62: 0.675 | Z62: 1.134129123 | AA62: -0.3173018039 | AB62: 2.478769602 | AC62: 1.197505198 | AD62: 2.594427666
Y63: 0.7 | Z63: 1.197505198 | AA63: -0.3313609026 | AB63: 2.594427666 | AC63: 1.263850507 | AD63: 2.716562717
Y64: 0.725 | Z64: 1.263850507 | AA64: -0.3458761078 | AB64: 2.716562717 | AC64: 1.333333333 | AD64: 2.845709153
Y65: 0.75 | Z65: 1.333333333 | AA65: -0.3608672664 | AB65: 2.845709153 | AC65: 1.406135964 | AD65: 2.98245614
Y66: 0.775 | Z66: 1.406135964 | AA66: -0.3763557032 | AB66: 2.98245614 | AC66: 1.48245614 | AD66: 3.127454542
Y67: 0.8 | Z67: 1.48245614 | AA67: -0.3923643484 | AB67: 3.127454542 | AC67: 1.562508691 | AD67: 3.281424906
Y68: 0.825 | Z68: 1.562508691 | AA68: -0.4089178797 | AB68: 3.281424906 | AC68: 1.646527386 | AD68: 3.445166673
Y69: 0.85 | Z69: 1.646527386 | AA69: -0.4260428809 | AB69: 3.445166673 | AC69: 1.734767025 | AD69: 3.619568837
Y70: 0.875 | Z70: 1.734767025 | AA70: -0.4437680187 | AB70: 3.619568837 | AC70: 1.827505828 | AD70: 3.805622319
Y71: 0.9 | Z71: 1.827505828 | AA71: -0.4621242412 | AB71: 3.805622319 | AC71: 1.925048141 | AD71: 4.004434384
Y72: 0.925 | Z72: 1.925048141 | AA72: -0.4811450003 | AB72: 4.004434384 | AC72: 2.027727547 | AD72: 4.217245494
Y73: 0.95 | Z73: 2.027727547 | AA73: -0.5008665011 | AB73: 4.217245494 | AC73: 2.135910416 | AD73: 4.445449066
Y74: 0.975 | Z74: 2.135910416 | AA74: -0.5213279843 | AB74: 4.445449066 | AC74: 2.25 | AD74: 4.690614747
Y75: 1 | Z75: 2.25 | AA75: -0.5425720433 | AB75: 4.690614747 | AC75: 2.370441153 | AD75: 4.954515919
Y76: 1.025 | Z76: 2.370441153 | AA76: -0.5646449851 | AB76: 4.954515919 | AC76: 2.497725796 | AD76: 5.239162348
Y77: 1.05 | Z77: 2.497725796 | AA77: -0.5875972378 | AB77: 5.239162348 | AC77: 2.63239927 | AD77: 5.546839094
Y78: 1.075 | Z78: =IF($Y$5=1,$C$2/($F$5+$C$5+($E$4-$B$4)*Y78),(0.08205821*$Y$9)/$C$2)^($E$4-$B$4)*($F$5+$E$4*Y78)^$E$4/($C$5-$B$4*Y78)^$B$4 -> 2.63239927 | AA78: -0.6114838165 | AB78: 5.546839094 | AC78: =Z79 -> 2.775067751 | AD78: =AB79 -> 5.880153119
Y79: 1.1 | Z79: 2.775067751 | AA79: -0.636364853 | AB79: =(Z80-Z78)/(Y80-Y78) -> 5.880153119 | AC79: 2.926406926 | AD79: 6.242089352
Y80: 1.125 | Z80: 2.926406926 | AA80: -0.6623062034 | AB80: 6.242089352 | AC80: 3.087172218 | AD80: 6.636078492
Y81: 1.15 | Z81: 3.087172218 | AA81: -0.6893801453 | AB81: 6.636078492 | AC81: 3.258210851 | AD81: 7.066079444
Y82: =(MIN($C$5/$B$4)+$F$5/$E$4)/100+Y81 -> 1.175 | Z82: 3.258210851 | AA82: -0.7176661807 | AB82: 7.066079444 | AC82: 3.44047619 | AD82: 7.536680097
Y83: 1.2 | Z83: 3.44047619 | AA83: -0.7472519643 | AB83: 7.536680097 | AC83: 3.635044856 | AD83: 8.053221289
Y84: 1.225 | Z84: 3.635044856 | AA84: -0.7782343794 | AB84: 8.053221289 | AC84: 3.843137255 | AD84: 8.62195023
Y85: 1.25 | Z85: 3.843137255 | AA85: -0.8107207916 | AB85: 8.62195023 | AC85: 4.066142367 | AD85: 9.250211713
Y86: 1.275 | Z86: 4.066142367 | AA86: -0.8448305127 | AB86: 9.250211713 | AC86: 4.305647841 | AD86: 9.946688083
Y87: 1.3 | Z87: 4.305647841 | AA87: -0.8806965183 | AB87: 9.946688083 | AC87: 4.563476772 | AD87: 10.72170278
Y88: 1.325 | Z88: 4.563476772 | AA88: -0.9184674722 | AB88: 10.72170278 | AC88: 4.84173298 | AD88: 11.58760743
Y89: 1.35 | Z89: 4.84173298 | AA89: -0.9583101205 | AB89: 11.58760743 | AC89: 5.142857143 | AD89: 12.5592798
Y90: 1.375 | Z90: 5.142857143 | AA90: -1.000412138 | AB90: 12.5592798 | AC90: 5.46969697 | AD90: 13.65477068
Y91: 1.4 | Z91: 5.46969697 | AA91: -1.044985524 | AB91: 13.65477068 | AC91: 5.825595677 | AD91: 14.89615254
Y92: 1.425 | Z92: 5.825595677 | AA92: -1.092270682 | AB92: 14.89615254 | AC92: 6.214504597 | AD92: 16.31064566
Y93: 1.45 | Z93: 6.214504597 | AA93: -1.142541325 | AB93: 16.31064566 | AC93: 6.64112796 | AD93: 17.93213029
Y94: 1.475 | Z94: 6.64112796 | AA94: -1.196110426 | AB94: 17.93213029 | AC94: 7.111111111 | AD94: 19.80320411
Y95: 1.5 | Z95: 7.111111111 | AA95: -1.253337448 | AB95: 19.80320411 | AC95: 7.631288165 | AD95: 21.97802198
Y96: 1.525 | Z96: 7.631288165 | AA96: -1.314637172 | AB96: 21.97802198 | AC96: 8.21001221 | AD96: 24.52627784
Y97: 1.55 | Z97: 8.21001221 | AA97: -1.380490516 | AB97: 24.52627784 | AC97: 8.857602057 | AD97: 27.53888623
Y98: 1.575 | Z98: 8.857602057 | AA98: -1.451457819 | AB98: 27.53888623 | AC98: 9.586956522 | AD98: 31.13624714
Y99: 1.6 | Z99: 9.586956522 | AA99: -1.528195144 | AB99: 31.13624714 | AC99: 10.41441441 | AD99: 35.48053162
Y100: 1.625 | Z100: 10.41441441 | AA100: -1.611474213 | AB100: 35.48053162 | AC100: 11.3609831 | AD100: 40.79439374
Y101: 1.65 | Z101: 11.3609831 | AA101: -1.702206529 | AB101: 40.79439374 | AC101: 12.4541341 | AD101: 47.39026702
Y102: 1.675 | Z102: 12.4541341 | AA102: =0.00831451*$Y$9*Z102*(LN(Z102/$AB$11)-1)/$AB$11 -> -1.801471834 | AB102: 47.39026702 | AC102: 13.73049645 | AD102: 55.71770278
Y103: 1.7 | Z103: 13.73049645 | AA103: -1.910549965 | AB103: 55.71770278 | AC103: 15.24001924 | AD103: 66.4427025
Y104: 1.725 | Z104: 15.24001924 | AA104: -2.030952101 | AB104: 66.4427025 | AC104: 17.05263158 | AD104: 80.58646802
Y105: 1.75 | Z105: 17.05263158 | AA105: -2.164439732 | AB105: 80.58646802 | AC105: 19.26934264 | AD105: 99.78070175
Y106: 1.775 | Z106: 19.26934264 | AA106: -2.313000085 | AB106: 99.78070175 | AC106: 22.04166667 | AD106: 126.7671072
Y107: 1.8 | Z107: 22.04166667 | AA107: -2.47869533 | AB107: 126.7671072 | AC107: 25.607698 | AD107: 166.45189
Y108: 1.825 | Z108: 25.607698 | AA108: -2.663160726 | AB108: 166.45189 | AC108: 30.36426117 | AD108: 228.3588605
Y109: 1.85 | Z109: 30.36426117 | AA109: -2.866102402 | AB109: 228.3588605 | AC109: 37.02564103 | AD109: 333.1229399
Y110: 1.875 | Z110: =IF($Y$5=1,$C$2/($F$5+$C$5+($E$4-$B$4)*Y110),(0.08205821*$Y$9)/$C$2)^($E$4-$B$4)*($F$5+$E$4*Y110)^$E$4/($C$5-$B$4*Y110)^$B$4 -> 37.02564103 | AA110: -3.080736906 | AB110: 333.1229399 | AC110: 47.02040816 | AD110: 533.1250813
Y111: 1.9 | Z111: 47.02040816 | AA111: -3.278700197 | AB111: 533.1250813 | AC111: 63.68189509 | AD111: 999.7938569
Y112: 1.925 | Z112: 63.68189509 | AA112: -3.351220252 | AB112: 999.7938569 | AC112: 97.01010101 | AD112: 2666.462601
Y113: 1.95 | Z113: 97.01010101 | AA113: -2.802418375 | AB113: 2666.462601 | AC113: 197.0050251 | AD113: 9999.797575
Y114: 1.975 | Z114: 197.0050251 | AA114: 2.179152681 | AB114: 9999.797575 | AC114: 497.002004 | AD114: 79999.79889
Y115: =MIN($C$5/$B$4)-(MIN($C$5/$B$4)+$F$5/$E$4)/250 -> 1.99 | Z115: 497.002004 | AA115: 31.43295538 | AB115: 79999.79889 | AC115: 1997.0005 | AD115: 199999.7995
Y116: =MIN($C$5/$B$4)-(MIN($C$5/$B$4)+$F$5/$E$4)/1000 -> 1.9975 | Z116: 1997.0005 | AA116: 282.9277824 | AB116: =(Z116-Z115)/(Y116-Y115) -> 199999.7995 | AC116: 1 | AD116: 1

Sheet NH3
A2: =IF($AB$5=1,"Pressure:","Volume:") -> Pressure: | C2: 3 | D2: =IF($AB$5=1,IF($AB$5=1,"atm","bar"),"L") -> atm | AB2: 1 | AC2: Celsius | AD2: A= | AE2: 6.8401
A3: Temperature: | C3: =$AB$9-273*IF($AB$2=1,1,0) -> 184 | D3: =IF(AB2=1,"C","K") -> C | AC3: Kelvin
A4: Reaction: | B4: 1 | C4: N2 | D4: + | E4: 3 | F4: H2 | H4: 2 | I4: NH3 | AD4: B= | AE4: 9496.4
A5: initial (moles): | C5: 2 | F5: 3 | I5: 0 | K5: Units: | AB5: 1 | AC5: Constant Pressure | AD5: C= | AE5: -4.2139
A6: =IF($AB$7=1,"initial (atm):","initial (M):") -> initial (atm): | C6: =IF($AB$5=1,$C$2*C5/SUM($C$5:$I$5),0.08205821*$AB$9*C5/$C$2)/(0.08205821*$AB$9)^($AB$7-1) -> 1.2 | F6: =IF($AB$5=1,$C$2*F5/SUM($C$5:$I$5),0.08205821*$AB$9*F5/$C$2)/(0.08205821*$AB$9)^($AB$7-1) -> 1.8 | I6: =IF($AB$5=1,$C$2*I5/SUM($C$5:$I$5),0.08205821*$AB$9*I5/$C$2)/(0.08205821*$AB$9)^($AB$7-1) -> 0 | K6: =IF($AB$7=1,"Qpi = ","Qci = ") -> Qpi = | L6: =IF(C5*F5=0,"∞",(I6)^$H$4/(F6)^$E$4/(C6)^$B$4) -> 0 | N6: Initial Reaction Quotient | AC6: Constant Volume | AD6: D= | AE6: -0.0066952
A7: change (moles): | C7: =MIN(I5/H4)-(AB11/29999)*(MIN(C5/B4,F5/E4)+MIN(I5/H4)) -> -0.6006200207 | F7: =E4*C7/B4 -> -1.801860062 | I7: =-H4*C7/B4 -> 1.201240041 | K7: x = | L7: =I7/H4 -> 0.6006200207 | M7: mol | N7: Extent of Reaction | AB7: 1 | AC7: Atmospheres | AD7: E= | AE7: 6.7811e-06
A8: =IF(ABS(L9/L10-1)<0.001,"equilibrium (moles):","equilibrating ... (moles):") -> equilibrating ... (moles): | C8: =C7+C5 -> 1.399379979 | F8: =F7+F5 -> 1.198139938 | I8: =I7+I5 -> 1.201240041 | AC8: Molarity | AD8: F= | AE8: -2.1892e-09
A9: =IF(ABS(L9/L10-1)<0.001,IF($AB$7=1,"equilibrium (atm):","equilibrium (M)"),IF($AB$7=1,"equilibrating ... (atm):","equilibrating…(M)")) -> equilibrating ... (atm): | C9: =IF($AB$5=1,$C$2*(C5+C7)/SUM($C$5:$I$5,$C$7:$I$7),(C5+C7)*0.08205821*$AB$9/$C$2)/(0.08205821*$AB$9)^($AB$7-1) -> 1.105134303 | F9: =IF($AB$5=1,$C$2*(F5+F7)/SUM($C$5:$I$5,$C$7:$I$7),(F5+F7)*0.08205821*$AB$9/$C$2)/(0.08205821*$AB$9)^($AB$7-1) -> 0.9462087242 | I9: =IF($AB$5=1,$C$2*(I5+I7)/SUM($C$5:$I$5,$C$7:$I$7),(I5+I7)*0.08205821*$AB$9/$C$2)/(0.08205821*$AB$9)^($AB$7-1) -> 0.9486569731 | K9: =IF($AB$7=1,"Qp = ","Qc = ") -> Qp = | L9: =(I9)^H4/(C9)^B4/(F9)^E4 -> 0.9612636135 | N9: Reaction Quotient | AB9: 457 | AC9: Temperature (k) | AD9: lnK = | AE9: =AE2+AE4/AB9+AE5*LN(AB9)+AE6*AB9+AE7*AB9^2+AE8*AB9^3 -> -0.04126106749
K10: =IF($AB$7=1,"Kp = ","Kc = ") -> Kp = | L10: =IF($AB$7=1,$AE$11,$AE$11*(0.08205821*$AB$9)^(E4+B4-H4)) -> 0.9595785825 | N10: Equilibrium Constant | AE10: (LnK = A + B/T +ClnK + DT + ET^2 + FT^3)
A11: =IF(ABS($L$9/$L$10-1)<0.001,"",IF($L$9>$L$10,"¬","®")) -> ¬ | C11: =IF(ABS(L9/L10-1)<0.001,"Equilibrium!",IF(L9>L10,"Too far.","Not far enough…")) -> Too far. | I11: =IF(ABS($L$9/$L$10-1)<0.001,"",IF($L$9>$L$10,"¬","®")) -> ¬ | K11: G = | L11: =0.00831451*$AB$9*L9*(LN(L9/L10)-1)/L10 -> -3.799725215 | M11: kJ | N11: Gibb's Free Energy | AB11: 18018 | AC11: Slider Position (1 - 9999) | AD11: Kp = | AE11: =EXP(AE9) -> 0.9595785825
K12: ΔG = | L12: =0.00831451*$AB$9*LN(L9/L10) -> 0.006666519984 | M12: kJ/mol | AC12: x | AD12: Qp | AE12: G
AC13: =-I5/H4 -> 0 | AD13: 0 | AE13: 0
AC14: =(MIN($C$5/$B$4,$F$5/$E$4)+$I$5/$H$4)/1000+AC13 -> 0.001 | AD14: =IF($AB$5=1,$C$2/($I$5+$F$5+$C$5+($H$4-$E$4-$B$4)*AC14),(0.08205821*$AB$9)/$C$2)^($H$4-$E$4-$B$4)*($I$5+$H$4*AC14)^$H$4/($C$5-$B$4*AC14)^$B$4/($F$5-$E$4*AC14)^$E$4 -> 2.063179256e-07 | AE14: =0.00831451*$AB$9*AD14*(LN(AD14/$AE$11)-1)/$AE$11 -> -1.335967e-05
AC15: =(MIN($C$5/$B$4,$F$5/$E$4)+$I$5/$H$4)/250+AC13 -> 0.004 | AD15: 3.32800754e-06 | AE15: -0.000178853107
AC16: =(MIN($C$5/$B$4,$F$5/$E$4)+$I$5/$H$4)/100+AC13 -> 0.01 | AD16: 2.114237361e-05 | AE16: -0.000981439921
AC17: =(MIN($C$5/$B$4,$F$5/$E$4)+$I$5/$H$4)/100+AC16 -> 0.02 | AD17: 8.692278741e-05 | AE17: -0.003548396618
AC18: =(MIN($C$5/$B$4,$F$5/$E$4)+$I$5/$H$4)/100+AC17 -> 0.03 | AD18: 0.0002010799164 | AE18: -0.007540776636
AC19: 0.04 | AD19: 0.0003676496319 | AE19: -0.0129088927
AC20: 0.05 | AD20: 0.0005909904448 | AE20: -0.01964000152
AC21: 0.06 | AD21: 0.0008758113554 | AE21: -0.02774111707
AC22: 0.07 | AD22: 0.00122720236 | AE22: -0.03723204383
AC23: 0.08 | AD23: 0.001650667894 | AE23: -0.04814190791
AC24: 0.09 | AD24: 0.002152163536 | AE24: -0.06050721869
AC25: 0.1 | AD25: 0.002738136302 | AE25: -0.07437070544
AC26: 0.11 | AD26: 0.003415568952 | AE26: -0.08978058716
AC27: 0.12 | AD27: 0.004192028722 | AE27: -0.1067901024
AC28: 0.13 | AD28: 0.005075720992 | AE28: -0.1254572035
A29: Developed by Prof. Douglas A. Vander Griend, Calvin College, Grand Rapids, MI | AC29: 0.14 | AD29: 0.006075548448 | AE29: -0.1458443586
AC30: 0.15 | AD30: 0.007201176344 | AE30: -0.1680184259
AC31: 0.16 | AD31: 0.008463104589 | AE31: -0.1920505773
AC32: 0.17 | AD32: 0.009872747435 | AE32: -0.2180162533
AC33: 0.18 | AD33: 0.01144252168 | AE33: -0.2459951385
AC34: 0.19 | AD34: 0.01318594437 | AE34: -0.2760711467
AC35: 0.2 | AD35: 0.0151177412 | AE35: -0.3083324064
AC36: 0.21 | AD36: 0.01725396681 | AE36: -0.3428712404
AC37: 0.22 | AD37: 0.01961213863 | AE37: -0.3797841299
AC38: 0.23 | AD38: 0.0222113857 | AE38: -0.4191716553
AC39: 0.24 | AD39: 0.02507261466 | AE39: =0.00831451*$AB$9*AD39*(LN(AD39/$AE$11)-1)/$AE$11 -> -0.4611384043
AC40: 0.25 | AD40: 0.02821869489 | AE40: -0.5057928378
AC41: 0.26 | AD41: 0.03167466528 | AE41: -0.5532471006
AC42: 0.27 | AD42: 0.03546796571 | AE42: -0.6036167639
AC43: 0.28 | AD43: 0.03962869623 | AE43: -0.6570204824
AC44: 0.29 | AD44: 0.04418990783 | AE44: -0.7135795485
AC45: 0.3 | AD45: 0.04918792914 | AE45: -0.7734173186
AC46: 0.31 | AD46: =IF($AB$5=1,$C$2/($I$5+$F$5+$C$5+($H$4-$E$4-$B$4)*AC46),(0.08205821*$AB$9)/$C$2)^($H$4-$E$4-$B$4)*($I$5+$H$4*AC46)^$H$4/($C$5-$B$4*AC46)^$B$4/($F$5-$E$4*AC46)^$E$4 -> 0.05466273401 | AE46: -0.8366584856
AC47: 0.32 | AD47: 0.06065835564 | AE47: -0.9034281645
AC48: 0.33 | AD48: 0.06722335403 | AE48: -0.9738507524
AC49: 0.34 | AD49: 0.07441134435 | AE49: -1.048048515
AC50: 0.35 | AD50: 0.08228159532 | AE50: -1.126139843
AC51: 0.36 | AD51: 0.09089970783 | AE51: -1.208237114
AC52: 0.37 | AD52: 0.1003383861 | AE52: -1.294444071
AC53: 0.38 | AD53: 0.1106783156 | AE53: -1.384852626
AC54: 0.39 | AD54: 0.1220091644 | AE54: -1.479538962
AC55: 0.4 | AD55: 0.134430727 | AE55: -1.578558795
AC56: 0.41 | AD56: 0.1480542353 | AE56: -1.681941607
AC57: 0.42 | AD57: 0.1630038613 | AE57: -1.789683655
AC58: 0.43 | AD58: 0.1794184464 | AE58: -1.901739473
AC59: 0.44 | AD59: 0.1974534941 | AE59: -2.018011557
AC60: 0.45 | AD60: 0.2172834719 | AE60: -2.138337839
AC61: 0.46 | AD61: 0.2391044765 | AE61: -2.262476464
AC62: 0.47 | AD62: 0.2631373285 | AE62: -2.390087281
AC63: 0.48 | AD63: 0.2896311735 | AE63: -2.520709299
AC64: 0.49 | AD64: 0.3188676847 | AE64: -2.653733221
AC65: 0.5 | AD65: 0.3511659808 | AE65: -2.788367903
AC66: 0.51 | AD66: 0.3868883974 | AE66: -2.923599342
AC67: 0.52 | AD67: 0.4264472806 | AE67: -3.058140423
AC68: 0.53 | AD68: 0.4703130094 | AE68: -3.190369218
AC69: 0.54 | AD69: 0.5190234983 | AE69: -3.318253055
AC70: 0.55 | AD70: 0.5731954934 | AE70: -3.43925482
AC71: 0.56 | AD71: 0.6335380469 | AE71: -3.550217039
AC72: 0.57 | AD72: 0.7008686498 | AE72: -3.647218025
AC73: 0.58 | AD73: 0.7761326223 | AE73: -3.725392796
AC74: 0.59 | AD74: 0.8604265127 | AE74: -3.778709362
AC75: 0.6 | AD75: 0.955026455 | AE75: -3.799688247
AC76: 0.61 | AD76: 1.061422687 | AE76: -3.779049432
AC77: 0.62 | AD77: 1.181361764 | AE77: -3.705266109
AC78: 0.63 | AD78: =IF($AB$5=1,$C$2/($I$5+$F$5+$C$5+($H$4-$E$4-$B$4)*AC78),(0.08205821*$AB$9)/$C$2)^($H$4-$E$4-$B$4)*($I$5+$H$4*AC78)^$H$4/($C$5-$B$4*AC78)^$B$4/($F$5-$E$4*AC78)^$E$4 -> 1.316898435 | AE78: -3.563998096
AC79: 0.64 | AD79: 1.470459728 | AE79: -3.33736904
AC80: 0.65 | AD80: 1.644924532 | AE80: -3.003039661
AC81: 0.66 | AD81: 1.843723014 | AE81: -2.533013015
AC82: =(MIN($C$5/$B$4,$F$5/$E$4)+$I$5/$H$4)/100+AC81 -> 0.67 | AD82: 2.070961538 | AE82: -1.892085411
AC83: 0.68 | AD83: 2.33158066 | AE83: -1.035825466
AC84: 0.69 | AD84: 2.631556284 | AE84: 0.09207979586
AC85: 0.7 | AD85: 2.978157645 | AE85: 1.563334608
AC86: 0.71 | AD86: 3.38028069 | AE86: 3.469710813
AC87: 0.72 | AD87: 3.84888241 | AE87: 5.929329107
AC88: 0.73 | AD88: 4.397551646 | AE88: 9.095169135
AC89: 0.74 | AD89: 5.043266233 | AE89: 13.16670686
AC90: 0.75 | AD90: 5.807407407 | AE90: 18.40598836
AC91: 0.76 | AD91: 6.717133501 | AE91: 25.1600721
AC92: 0.77 | AD92: 7.807261861 | AE92: 33.89273105
AC93: 0.78 | AD93: 9.122879429 | AE93: 45.22980595
AC94: 0.79 | AD94: 10.72301363 | AE94: 60.02498842
AC95: 0.8 | AD95: 12.68587106 | AE95: 79.45668275
AC96: 0.81 | AD96: 15.11643538 | AE96: 105.1729989
AC97: 0.82 | AD97: 18.15768404 | AE97: 139.5127633
AC98: 0.83 | AD98: 22.00747465 | AE98: 185.8492148
AC99: 0.84 | AD99: 26.94452427 | AE99: 249.1365092
AC100: 0.85 | AD100: 33.36935647 | AE100: 336.8005447
AC101: 0.86 | AD101: 41.8706159 | AE101: 460.2321263
AC102: 0.87 | AD102: 53.3358134 | AE102: 637.3700237
AC103: 0.88 | AD103: 69.14285714 | AE103: =0.00831451*$AB$9*AD103*(LN(AD103/$AE$11)-1)/$AE$11 -> 897.3333982
AC104: 0.89 | AD104: 91.50491884 | AE104: 1289.081684
AC105: 0.9 | AD105: 124.1212121 | AE105: 1898.405688
AC106: 0.91 | AD106: 173.4749281 | AE106: 2883.224343
AC107: 0.92 | AD107: 251.5995275 | AE107: 4552.110243
AC108: 0.93 | AD108: 382.4732034 | AE108: 7554.274767
AC109: 0.94 | AD109: 618.3850713 | AE109: 13390.27188
AC110: 0.95 | AD110: =IF($AB$5=1,$C$2/($I$5+$F$5+$C$5+($H$4-$E$4-$B$4)*AC110),(0.08205821*$AB$9)/$C$2)^($H$4-$E$4-$B$4)*($I$5+$H$4*AC110)^$H$4/($C$5-$B$4*AC110)^$B$4/($F$5-$E$4*AC110)^$E$4 -> 1087.739761 | AE110: 25985.98344
AC111: 0.96 | AD111: 2162.14245 | AE111: 57535.16781
AC112: 0.97 | AD112: 5214.816733 | AE112: 156947.603
AC113: 0.98 | AD113: 17904.52804 | AE113: 626319.6355
AC114: 0.99 | AD114: 145685.5974 | AE114: 6305618.018
AC115: =MIN($C$5/$B$4,$F$5/$E$4)-(MIN($C$5/$B$4,$F$5/$E$4)+$I$5/$H$4)/250 -> 0.996 | AD115: 2299399.177 | AE115: 124644097.5
AC116: =MIN($C$5/$B$4,$F$5/$E$4)-(MIN($C$5/$B$4,$F$5/$E$4)+$I$5/$H$4)/1000 -> 0.999 | AD116: 147901300.4 | AE116: 1.045594325e+10

Sheet NO
A2: =IF($AB$5=1,"Pressure:","Volume:") -> Pressure: | C2: 1 | D2: =IF($AB$5=1,"atm","L") -> atm | AB2: 2 | AC2: Celsius | AD2: A= | AE2: 4.0435
A3: Temperature: | C3: =AB9-273*IF($AB$2=1,1,0) -> 1500 | D3: =IF(AB2=1,"C","K") -> K | AC3: Kelvin
A4: Reaction: | B4: 1 | C4: N2 | D4: + | E4: 1 | F4: O2 | H4: 2 | I4: NO | AD4: B= | AE4: -21718
A5: initial (moles): | C5: 0.8 | F5: 0.2 | I5: 0 | K5: Units: | AB5: 1 | AC5: Constant Pressure | AD5: C= | AE5: -0.081138
A6: =IF($AB$7=1,"initial (atm):","initial (M):") -> initial (atm): | C6: =IF($AB$5=1,$C$2*C5/SUM($C$5:$I$5),0.08205821*$AB$9*C5/$C$2)/(0.08205821*$AB$9)^($AB$7-1) -> 0.8 | F6: =IF($AB$5=1,$C$2*F5/SUM($C$5:$I$5),0.08205821*$AB$9*F5/$C$2)/(0.08205821*$AB$9)^($AB$7-1) -> 0.2 | I6: =IF($AB$5=1,$C$2*I5/SUM($C$5:$I$5),0.08205821*$AB$9*I5/$C$2)/(0.08205821*$AB$9)^($AB$7-1) -> 0 | K6: =IF($AB$7=1,"Qpi = ","Qci = ") -> Qpi = | L6: =IF(C5*F5=0,"∞",(I6)^$H$4/(F6)^$E$4/(C6)^$B$4) -> 0 | N6: Initial Reaction Quotient | AC6: Constant Volume | AD6: D= | AE6: 0.00032571
A7: change (moles): | C7: =MIN(I5/H4)-(AB11/29999)*(MIN(C5/B4,F5/E4)+MIN(I5/H4)) -> -0.01000033334 | F7: =E4*C7/B4 -> -0.01000033334 | I7: =-H4*C7/B4 -> 0.02000066669 | K7: x = | L7: =I7/H4 -> 0.01000033334 | M7: mol | N7: Extent of Reaction | AB7: 1 | AC7: Atmospheres | AD7: E= | AE7: -1.0605e-07
A8: =IF(ABS(L9/L10-1)<0.001,"equilibrium (moles):","equilibrating ... (moles):") -> equilibrating ... (moles): | C8: =C7+C5 -> 0.7899996667 | F8: =F7+F5 -> 0.1899996667 | I8: =I7+I5 -> 0.02000066669 | AC8: Molarity | AD8: F= | AE8: 7.5859e-12
A9: =IF(ABS(L9/L10-1)<0.001,IF($AB$7=1,"equilibrium (atm):","equilibrium (M)"),IF($AB$7=1,"equilibrating ... (atm):","equilibrating…(M)")) -> equilibrating ... (atm): | C9: =IF($AB$5=1,$C$2*(C5+C7)/SUM($C$5:$I$5,$C$7:$I$7),(C5+C7)*0.08205821*$AB$9/$C$2)/(0.08205821*$AB$9)^($AB$7-1) -> 0.7899996667 | F9: =IF($AB$5=1,$C$2*(F5+F7)/SUM($C$5:$I$5,$C$7:$I$7),(F5+F7)*0.08205821*$AB$9/$C$2)/(0.08205821*$AB$9)^($AB$7-1) -> 0.1899996667 | I9: =IF($AB$5=1,$C$2*(I5+I7)/SUM($C$5:$I$5,$C$7:$I$7),(I5+I7)*0.08205821*$AB$9/$C$2)/(0.08205821*$AB$9)^($AB$7-1) -> 0.02000066669 | K9: =IF($AB$7=1,"Qp = ","Qc = ") -> Qp = | L9: =(I9)^H4/(C9)^B4/(F9)^E4 -> 0.002665073542 | N9: Reaction Quotient | AB9: 1500 | AC9: Temperature (k) | AD9: lnK = | AE9: =AE2+AE4/AB9+AE5*LN(AB9)+AE6*AB9+AE7*AB9^2+AE8*AB9^3 -> -10.75299183
K10: =IF($AB$7=1,"Kp = ","Kc = ") -> Kp = | L10: =IF($AB$7=1,$AE$11,$AE$11*(0.08205821*$AB$9)^(B4+E4-H4)) -> 2.138134319e-05 | N10: Equilibrium Constant | AE10: (LnK = A + B/T +ClnK + DT + ET^2 + FT^3)
A11: =IF(ABS($L$9/$L$10-1)<0.001,"",IF($L$9>$L$10,"¬","®")) -> ¬ | C11: =IF(ABS(L9/L10-1)<0.001,"Equilibrium!",IF(L9>L10,"Too far.","Not far enough…")) -> Too far. | I11: =IF(ABS($L$9/$L$10-1)<0.001,"",IF($L$9>$L$10,"¬","®")) -> ¬ | K11: G = | L11: =0.00831451*$AB$9*L9*(LN(L9/L10)-1)/L10 -> 5946.846505 | M11: kJ | N11: Gibb's Free Energy | AB11: 1500 | AC11: Slider Position (1 - 9999) | AD11: Kp = | AE11: =EXP(AE9) -> 2.138134319e-05
K12: ΔG = | L12: =0.00831451*$AB$9*LN(L9/L10) -> 60.18210545 | M12: kJ/mol | AC12: x | AD12: Qp | AE12: G
AC13: =-I5/H4 -> 0 | AD13: 0 | AE13: 0
AC14: =(MIN($C$5/$B$4,$F$5/$E$4)+$I$5/$H$4)/1000+AC13 -> 0.0002 | AD14: =IF($AB$5=1,$C$2/($I$5+$F$5+$C$5+($H$4-$E$4-$B$4)*AC14),(0.08205821*$AB$9)/$C$2)^($H$4-$E$4-$B$4)*($I$5+$H$4*AC14)^$H$4/($C$5-$B$4*AC14)^$B$4/($F$5-$E$4*AC14)^$E$4 -> 1.001251314e-06 | AE14: =0.00831451*$AB$9*AD14*(LN(AD14/$AE$11)-1)/$AE$11 -> -2.371907257
AC15: =(MIN($C$5/$B$4,$F$5/$E$4)+$I$5/$H$4)/250+AC13 -> 0.0008 | AD15: 1.608033737e-05 | AE15: =0.00831451*$AB$9*AD15*(LN(AD15/$AE$11)-1)/$AE$11 -> -12.05215425
AC16: =(MIN($C$5/$B$4,$F$5/$E$4)+$I$5/$H$4)/100+AC13 -> 0.002 | AD16: 0.0001012632592 | AE16: =0.00831451*$AB$9*AD16*(LN(AD16/$AE$11)-1)/$AE$11 -> 32.79428336
AC17: =(MIN($C$5/$B$4,$F$5/$E$4)+$I$5/$H$4)/100+AC16 -> 0.004 | AD17: 0.000410214337 | AE17: =0.00831451*$AB$9*AD17*(LN(AD17/$AE$11)-1)/$AE$11 -> 467.5888283
AC18: =(MIN($C$5/$B$4,$F$5/$E$4)+$I$5/$H$4)/100+AC17 -> 0.006 | AD18: 0.0009348463995 | AE18: =0.00831451*$AB$9*AD18*(LN(AD18/$AE$11)-1)/$AE$11 -> 1514.760938
AC19: 0.008 | AD19: 0.001683501684 | AE19: 3305.484444
AC20: 0.01 | AD20: 0.002664890073 | AE20: 5946.3301
AC21: 0.012 | AD21: 0.003888108867 | AE21: 9532.50882
AC22: 0.014 | AD22: 0.005362663821 | AE22: 14153.47381
AC23: 0.016 | AD23: 0.007098491571 | AE23: 19895.87943
AC24: 0.018 | AD24: 0.009105983531 | AE24: 26845.37611
AC25: 0.02 | AD25: 0.0113960114 | AE25: 35087.81567
AC26: 0.022 | AD26: 0.01397995436 | AE26: 44710.12933
AC27: 0.024 | AD27: 0.01686972821 | AE27: 55801.01308
AC28: 0.026 | AD28: 0.02007781639 | AE28: 68451.49516
A29: Developed by Prof. Douglas A. Vander Griend, Calvin College, Grand Rapids, MI | AC29: 0.028 | AD29: 0.02361730329 | AE29: 82755.43062
AC30: 0.03 | AD30: 0.02750190985 | AE30: 98809.95116
AC31: 0.032 | AD31: 0.03174603175 | AE31: 116715.8893
AC32: 0.034 | AD32: 0.03636478027 | AE32: 136578.1899
AC33: 0.036 | AD33: 0.04137402631 | AE33: 158506.3194
AC34: 0.038 | AD34: 0.04679044749 | AE34: 182614.6799
AC35: 0.04 | AD35: 0.05263157895 | AE35: 209023.0337
AC36: 0.042 | AD36: 0.05891586787 | AE36: 237856.9457
AC37: 0.044 | AD37: 0.06566273233 | AE37: 269248.2457
AC38: 0.046 | AD38: 0.07289262462 | AE38: 303335.5175
AC39: 0.048 | AD39: 0.08062709966 | AE39: 340264.6179
AC40: 0.05 | AD40: 0.08888888889 | AE40: 380189.2305
AC41: 0.052 | AD41: 0.09770198005 | AE41: 423271.4588
AC42: 0.054 | AD42: 0.1070917037 | AE42: 469682.4639
AC43: 0.056 | AD43: 0.1170848268 | AE43: 519603.1512
AC44: 0.058 | AD44: 0.1277096542 | AE44: 573224.9128
AC45: 0.06 | AD45: 0.138996139 | AE45: 630750.4313
AC46: 0.062 | AD46: =IF($AB$5=1,$C$2/($I$5+$F$5+$C$5+($H$4-$E$4-$B$4)*AC46),(0.08205821*$AB$9)/$C$2)^($H$4-$E$4-$B$4)*($I$5+$H$4*AC46)^$H$4/($C$5-$B$4*AC46)^$B$4/($F$5-$E$4*AC46)^$E$4 -> 0.1509760025 | AE46: 692394.5509
AC47: 0.064 | AD47: 0.1636828645 | AE47: 758385.2261
AC48: 0.066 | AD48: 0.1771523852 | AE48: 828964.5526
AC49: 0.068 | AD49: 0.1914224209 | AE49: 904389.8933
AC50: 0.07 | AD50: 0.2065331928 | AE50: 984935.1077
AC51: 0.072 | AD51: 0.2225274725 | AE51: 1070891.897
AC52: 0.074 | AD52: 0.2394507849 | AE52: 1162571.28
AC53: 0.076 | AD53: 0.2573516307 | AE53: 1260305.211
AC54: 0.078 | AD54: 0.2762817311 | AE54: 1364448.358
AC55: 0.08 | AD55: 0.2962962963 | AE55: 1475380.068
AC56: 0.082 | AD56: 0.3174543223 | AE56: 1593506.523
AC57: 0.084 | AD57: 0.3398189174 | AE57: 1719263.137
AC58: 0.086 | AD58: 0.3634576638 | AE58: 1853117.196
AC59: 0.088 | AD59: 0.3884430177 | AE59: 1995570.791
AC60: 0.09 | AD60: 0.4148527529 | AE60: 2147164.081
AC61: 0.092 | AD61: 0.4427704541 | AE61: 2308478.918
AC62: 0.094 | AD62: 0.4722860655 | AE62: 2480142.889
AC63: 0.096 | AD63: 0.5034965035 | AE63: 2662833.841
AC64: 0.098 | AD64: 0.5365063404 | AE64: 2857284.935
AC65: 0.1 | AD65: 0.5714285714 | AE65: 3064290.33
AC66: 0.102 | AD66: 0.6083854745 | AE66: 3284711.566
AC67: 0.104 | AD67: 0.6475095785 | AE67: 3519484.762
AC68: 0.106 | AD68: 0.6889447544 | AE68: 3769628.751
AC69: 0.108 | AD69: 0.7328474491 | AE69: 4036254.291
AC70: 0.11 | AD70: 0.7793880837 | AE70: 4320574.53
AC71: 0.112 | AD71: 0.8287526427 | AE71: 4623916.917
AC72: 0.114 | AD72: 0.8811444844 | AE72: 4947736.808
AC73: 0.116 | AD73: 0.9367864105 | AE73: 5293633.051
AC74: 0.118 | AD74: 0.9959230384 | AE74: 5663365.885
AC75: 0.12 | AD75: 1.058823529 | AE75: 6058877.573
AC76: 0.122 | AD76: 1.125784736 | AE76: 6482316.268
AC77: 0.124 | AD77: 1.197134849 | AE77: 6936063.698
AC78: 0.126 | AD78: =IF($AB$5=1,$C$2/($I$5+$F$5+$C$5+($H$4-$E$4-$B$4)*AC78),(0.08205821*$AB$9)/$C$2)^($H$4-$E$4-$B$4)*($I$5+$H$4*AC78)^$H$4/($C$5-$B$4*AC78)^$B$4/($F$5-$E$4*AC78)^$E$4 -> 1.273237629 | AE78: 7422767.433
AC79: 0.128 | AD79: 1.354497354 | AE79: 7945378.604
AC80: 0.13 | AD80: 1.441364606 | AE80: 8507196.208
AC81: 0.132 | AD81: 1.534343079 | AE81: 9111919.352
AC82: =(MIN($C$5/$B$4,$F$5/$E$4)+$I$5/$H$4)/100+AC81 -> 0.134 | AD82: 1.633997634 | AE82: =0.00831451*$AB$9*AD82*(LN(AD82/$AE$11)-1)/$AE$11 -> 9763709.159
AC83: 0.136 | AD83: 1.740963855 | AE83: 10467262.47
AC84: 0.138 | AD84: 1.855959458 | AE84: 11227900.03
AC85: 0.14 | AD85: 1.97979798 | AE85: 12051672.63
AC86: 0.142 | AD86: 2.113405303 | AE86: 12945489.52
AC87: 0.144 | AD87: 2.257839721 | AE87: 13917274.83
AC88: 0.146 | AD88: 2.414316457 | AE88: 14976159.25
AC89: 0.148 | AD89: 2.584237848 | AE89: 16132716.7
AC90: 0.15 | AD90: 2.769230769 | AE90: 17399258.68
AC91: 0.152 | AD91: 2.971193416 | AE91: 18790203.35
AC92: 0.154 | AD92: 3.192354287 | AE92: 20322542.43
AC93: 0.156 | AD93: 3.435347261 | AE93: 22016437.43
AC94: 0.158 | AD94: 3.703308115 | AE94: 23895988.87
AC95: 0.16 | AD95: 4 | AE95: 25990239.89
AC96: 0.162 | AD96: 4.329978551 | AE96: 28334501.66
AC97: 0.164 | AD97: 4.69881202 | AE97: 30972127.5
AC98: 0.166 | AD98: 5.113379106 | AE98: 33956922.82
AC99: 0.168 | AD99: 5.582278481 | AE99: 37356472.75
AC100: 0.17 | AD100: 6.116402116 | AE100: 41256821.46
AC101: 0.172 | AD101: 6.729754322 | AE101: 45769187.88
AC102: 0.174 | AD102: 7.440648808 | AE102: 51039829.19
AC103: 0.176 | AD103: 8.273504274 | AE103: 57264912.79
AC104: 0.178 | AD104: 9.26161941 | AE104: 64713627.39
AC105: 0.18 | AD105: 10.4516129 | AE105: 73765379.59
AC106: 0.182 | AD106: 11.91082344 | AE106: 84972183.86
AC107: 0.184 | AD107: 13.74025974 | AE107: 99168602.47
AC108: 0.186 | AD108: 16.09865054 | AE108: 117677475.4
AC109: 0.188 | AD109: 19.25054466 | AE109: 142724870.3
AC110: 0.19 | AD110: =IF($AB$5=1,$C$2/($I$5+$F$5+$C$5+($H$4-$E$4-$B$4)*AC110),(0.08205821*$AB$9)/$C$2)^($H$4-$E$4-$B$4)*($I$5+$H$4*AC110)^$H$4/($C$5-$B$4*AC110)^$B$4/($F$5-$E$4*AC110)^$E$4 -> 23.67213115 | AE110: 178361744.9
AC111: 0.192 | AD111: 30.31578947 | AE111: 232793838.4
AC112: 0.194 | AD112: 41.40374037 | AE112: 325465690.7
AC113: 0.196 | AD113: 63.60264901 | AE113: 515892646.8
AC114: 0.198 | AD114: 130.2458472 | AE114: 1110902499
AC115: =MIN($C$5/$B$4,$F$5/$E$4)-(MIN($C$5/$B$4,$F$5/$E$4)+$I$5/$H$4)/250 -> 0.1992 | AD115: 330.2316911 | AE115: 2995848786
AC116: =MIN($C$5/$B$4,$F$5/$E$4)-(MIN($C$5/$B$4,$F$5/$E$4)+$I$5/$H$4)/1000 -> 0.1998 | AD116: 1330.224592 | AE116: 1.314884305e+10

Sheet Fe(SCN)
A2: =IF($AB$5=1,"Pressure:","Volume:") -> Pressure: | C2: 0.1 | D2: =IF($AB$5=1,"atm","L") -> atm | AB2: 1 | AC2: Celsius | AD2: A= | AE2: 1.8
A3: Temperature: | C3: =AB9-273*IF($AB$2=1,1,0) -> 1131 | D3: =IF(AB2=1,"C","K") -> C | AC3: Kelvin
A4: Reaction: | B4: 1 | C4: Fe+3 | D4: + | E4: 1 | F4: SCN-1 | H4: 1 | I4: Fe(SCN)+2 | AD4: B= | AE4: 0
A5: initial (moles): | C5: 0.01 | F5: 0.01 | I5: 0 | K5: Units: | AB5: 1 | AC5: Constant Pressure | AD5: C= | AE5: 0
A6: =IF($AB$7=1,"initial (atm):","initial (M):") -> initial (M): | C6: =IF($AB$5=1,$C$2*C5/SUM($C$5:$I$5),0.08205821*$AB$9*C5/$C$2)/(0.08205821*$AB$9)^($AB$7-1) -> 0.000433991134 | F6: =IF($AB$5=1,$C$2*F5/SUM($C$5:$I$5),0.08205821*$AB$9*F5/$C$2)/(0.08205821*$AB$9)^($AB$7-1) -> 0.000433991134 | I6: =IF($AB$5=1,$C$2*I5/SUM($C$5:$I$5),0.08205821*$AB$9*I5/$C$2)/(0.08205821*$AB$9)^($AB$7-1) -> 0 | K6: =IF($AB$7=1,"Qpi = ","Qci = ") -> Qci = | L6: =IF(C5*F5=0,"∞",(I6)^$H$4/(F6)^$E$4/(C6)^$B$4) -> 0 | N6: Initial Reaction Quotient | AC6: Constant Volume | AD6: D= | AE6: 0
A7: change (moles): | C7: =MIN(I5/H4)-(AB11/29999)*(MIN(C5/B4,F5/E4)+MIN(I5/H4)) -> -0.0005000166672 | F7: =E4*C7/B4 -> -0.0005000166672 | I7: =-H4*C7/B4 -> 0.0005000166672 | K7: x = | L7: =I7/H4 -> 0.0005000166672 | M7: mol | N7: Extent of Reaction | AB7: 2 | AC7: Atmospheres | AD7: E= | AE7: 0
A8: =IF(ABS(L9/L10-1)<0.001,"equilibrium (moles):","equilibrating ... (moles):") -> equilibrating ... (moles): | C8: =C7+C5 -> 0.009499983333 | F8: =F7+F5 -> 0.009499983333 | I8: =I7+I5 -> 0.0005000166672 | AC8: Molarity | AD8: F= | AE8: 0
A9: =IF(ABS(L9/L10-1)<0.001,IF($AB$7=1,"equilibrium (atm):","equilibrium (M)"),IF($AB$7=1,"equilibrating ... (atm):","equilibrating…(M)")) -> equilibrating…(M) | C9: =IF($AB$5=1,$C$2*(C5+C7)/SUM($C$5:$I$5,$C$7:$I$7),(C5+C7)*0.08205821*$AB$9/$C$2)/(0.08205821*$AB$9)^($AB$7-1) -> 0.0004228627758 | F9: =IF($AB$5=1,$C$2*(F5+F7)/SUM($C$5:$I$5,$C$7:$I$7),(F5+F7)*0.08205821*$AB$9/$C$2)/(0.08205821*$AB$9)^($AB$7-1) -> 0.0004228627758 | I9: =IF($AB$5=1,$C$2*(I5+I7)/SUM($C$5:$I$5,$C$7:$I$7),(I5+I7)*0.08205821*$AB$9/$C$2)/(0.08205821*$AB$9)^($AB$7-1) -> 2.22567165e-05 | K9: =IF($AB$7=1,"Qp = ","Qc = ") -> Qc = | L9: =(I9)^H4/(C9)^B4/(F9)^E4 -> 124.4692812 | N9: Reaction Quotient | AB9: 1404 | AC9: Temperature (k) | AD9: lnK = | AE9: =AE2+AE4/AB9+AE5*LN(AB9)+AE6*AB9+AE7*AB9^2+AE8*AB9^3 -> 1.8
K10: =IF($AB$7=1,"Kp = ","Kc = ") -> Kc = | L10: =IF($AB$7=1,$AE$11,$AE$11*(0.08205821*$AB$9)^(E4+B4-H4)) -> 696.9782319 | N10: Equilibrium Constant | AE10: (LnK = A + B/T +ClnK + DT + ET^2 + FT^3)
A11: =IF(ABS($L$9/$L$10-1)<0.001,"",IF($L$9>$L$10,"¬","®")) -> ® | C11: =IF(ABS(L9/L10-1)<0.001,"Equilibrium!",IF(L9>L10,"Too far.","Not far enough…")) -> Not far enough… | I11: =IF(ABS($L$9/$L$10-1)<0.001,"",IF($L$9>$L$10,"¬","®")) -> ® | K11: G = | L11: =0.00831451*$AB$9*L9*(LN(L9/L10)-1)/L10 -> -5.676044159 | M11: kJ | N11: Gibb's Free Energy | AB11: 1500 | AC11: Slider Position (1 - 9999) | AD11: Kp = | AE11: =EXP(AE9) -> 6.049647464
K12: ΔG = | L12: =0.00831451*$AB$9*LN(L9/L10) -> -20.11000688 | M12: kJ/mol | AC12: x | AD12: Qp | AE12: G
AC13: =-I5/H4 -> 0 | AD13: 0 | AE13: 0
AC14: =(MIN($C$5/$B$4,$F$5/$E$4)+$I$5/$H$4)/1000+AC13 -> 1e-05 | AD14: =IF($AB$5=1,$C$2/($I$5+$F$5+$C$5+($H$4-$E$4-$B$4)*AC14),(0.08205821*$AB$9)/$C$2)^($H$4-$E$4-$B$4)*($I$5+$H$4*AC14)^$H$4/($C$5-$B$4*AC14)^$B$4/($F$5-$E$4*AC14)^$E$4 -> 0.02003004005 | AE14: =0.00831451*$AB$9*AD14*(LN(AD14/$AE$11)-1)/$AE$11 -> -0.2593652754
AC15: =(MIN($C$5/$B$4,$F$5/$E$4)+$I$5/$H$4)/250+AC13 -> 4e-05 | AD15: 0.08048257286 | AE15: =0.00831451*$AB$9*AD15*(LN(AD15/$AE$11)-1)/$AE$11 -> -0.8261594699
AC16: =(MIN($C$5/$B$4,$F$5/$E$4)+$I$5/$H$4)/100+AC13 -> 0.0001 | AD16: 0.2030405061 | AE16: =0.00831451*$AB$9*AD16*(LN(AD16/$AE$11)-1)/$AE$11 -> -1.721674355
AC17: =(MIN($C$5/$B$4,$F$5/$E$4)+$I$5/$H$4)/100+AC16 -> 0.0002 | AD17: 0.4123281966 | AE17: =0.00831451*$AB$9*AD17*(LN(AD17/$AE$11)-1)/$AE$11 -> -2.932678695
AC18: =(MIN($C$5/$B$4,$F$5/$E$4)+$I$5/$H$4)/100+AC17 -> 0.0003 | AD18: 0.6281220108 | AE18: =0.00831451*$AB$9*AD18*(LN(AD18/$AE$11)-1)/$AE$11 -> -3.957342792
AC19: 0.0004 | AD19: 0.8506944444 | AE19: -4.86170603
AC20: 0.0005 | AD20: 1.08033241 | AE20: -5.675914915
AC21: 0.0006 | AD21: 1.317338162 | AE21: -6.41692379
AC22: 0.0007 | AD22: 1.562030293 | AE22: -7.095322036
AC23: 0.0008 | AD23: 1.814744802 | AE23: -7.718123403
AC24: 0.0009 | AD24: 2.075836252 | AE24: -8.290118616
AC25: 0.001 | AD25: 2.345679012 | AE25: -8.814608781
AC26: 0.0011 | AD26: 2.624668602 | AE26: -9.293835473
AC27: 0.0012 | AD27: 2.91322314 | AE27: -9.729247761
AC28: 0.0013 | AD28: 3.211784912 | AE28: -10.12167505
A29: Developed by Prof. Douglas A. Vander Griend, Calvin College, Grand Rapids, MI | AC29: 0.0014 | AD29: 3.520822066 | AE29: -10.47144232
AC30: 0.0015 | AD30: 3.84083045 | AE30: -10.7784483
AC31: 0.0016 | AD31: 4.172335601 | AE31: -11.04221893
AC32: 0.0017 | AD32: 4.515894905 | AE32: -11.26194345
AC33: 0.0018 | AD33: 4.872099941 | AE33: -11.43649808
AC34: 0.0019 | AD34: 5.241579028 | AE34: -11.56446027
AC35: 0.002 | AD35: 5.625 | AE35: -11.64411569
AC36: 0.0021 | AD36: 6.023073225 | AE36: -11.67345925
AC37: 0.0022 | AD37: 6.436554898 | AE37: -11.65019118
AC38: 0.0023 | AD38: 6.866250632 | AE38: -11.57170866
AC39: 0.0024 | AD39: 7.313019391 | AE39: -11.43509347
AC40: 0.0025 | AD40: 7.777777778 | AE40: -11.23709571
AC41: 0.0026 | AD41: 8.261504748 | AE41: -10.97411392
AC42: 0.0027 | AD42: 8.765246763 | AE42: -10.64217116
AC43: 0.0028 | AD43: 9.290123457 | AE43: -10.23688727
AC44: 0.0029 | AD44: 9.837333862 | AE44: -9.753446856
AC45: 0.003 | AD45: 10.40816327 | AE45: -9.186562741
AC46: 0.0031 | AD46: =IF($AB$5=1,$C$2/($I$5+$F$5+$C$5+($H$4-$E$4-$B$4)*AC46),(0.08205821*$AB$9)/$C$2)^($H$4-$E$4-$B$4)*($I$5+$H$4*AC46)^$H$4/($C$5-$B$4*AC46)^$B$4/($F$5-$E$4*AC46)^$E$4 -> 11.00399076 | AE46: -8.530434471
AC47: 0.0032 | AD47: 11.62629758 | AE47: -7.778701383
AC48: 0.0033 | AD48: 12.27667632 | AE48: -6.924389619
AC49: 0.0034 | AD49: 12.95684114 | AE49: -5.959852404
AC50: 0.0035 | AD50: 13.66863905 | AE50: -4.876702734
AC51: 0.0036 | AD51: 14.4140625 | AE51: -3.665737538
AC52: 0.0037 | AD52: 15.19526329 | AE52: -2.316852174
AC53: 0.0038 | AD53: 16.01456816 | AE53: -0.8189439511
AC54: 0.0039 | AD54: 16.8744961 | AE54: 0.8401968331
AC55: 0.004 | AD55: 17.77777778 | AE55: 2.674010123
AC56: 0.0041 | AD56: 18.72737719 | AE56: 4.697305666
AC57: 0.0042 | AD57: 19.72651605 | AE57: 6.926421317
AC58: 0.0043 | AD58: 20.77870114 | AE58: 9.379402924
AC59: 0.0044 | AD59: 21.8877551 | AE59: 12.07620911
AC60: 0.0045 | AD60: 23.05785124 | AE60: 15.03894482
AC61: 0.0046 | AD61: 24.29355281 | AE61: 18.29212834
AC62: 0.0047 | AD62: 25.5998576 | AE62: 21.86299705
AC63: 0.0048 | AD63: 26.98224852 | AE63: 25.78185855
AC64: 0.0049 | AD64: 28.44675125 | AE64: 30.08249469
AC65: 0.005 | AD65: 30 | AE65: 34.80262769
AC66: 0.0051 | AD66: 31.64931279 | AE66: 39.98445934
AC67: 0.0052 | AD67: 33.40277778 | AE67: 45.67529633
AC68: 0.0053 | AD68: 35.26935265 | AE68: 51.92827755
AC69: 0.0054 | AD69: 37.25897921 | AE69: 58.80322255
AC70: 0.0055 | AD70: 39.38271605 | AE70: 66.36762433
AC71: 0.0056 | AD71: 41.65289256 | AE71: 74.69781475
AC72: 0.0057 | AD72: 44.08328826 | AE72: 83.88033713
AC73: 0.0058 | AD73: 46.6893424 | AE73: 94.01356869
AC74: 0.0059 | AD74: 49.48839976 | AE74: 105.2096452
AC75: 0.006 | AD75: 52.5 | AE75: 117.596753
AC76: 0.0061 | AD76: 55.74621959 | AE76: 131.3218695
AC77: 0.0062 | AD77: 59.25207756 | AE77: 146.5540539
AC78: 0.0063 | AD78: =IF($AB$5=1,$C$2/($I$5+$F$5+$C$5+($H$4-$E$4-$B$4)*AC78),(0.08205821*$AB$9)/$C$2)^($H$4-$E$4-$B$4)*($I$5+$H$4*AC78)^$H$4/($C$5-$B$4*AC78)^$B$4/($F$5-$E$4*AC78)^$E$4 -> 63.04601899 | AE78: 163.488416
AC79: 0.0064 | AD79: 67.16049383 | AE79: 182.3509254
AC80: 0.0065 | AD80: 71.63265306 | AE80: 203.4042675
AC81: 0.0066 | AD81: 76.50519031 | AE81: 226.9550119
AC82: =(MIN($C$5/$B$4,$F$5/$E$4)+$I$5/$H$4)/100+AC81 -> 0.0067 | AD82: 81.82736455 | AE82: =0.00831451*$AB$9*AD82*(LN(AD82/$AE$11)-1)/$AE$11 -> 253.3624346
AC83: 0.0068 | AD83: 87.65625 | AE83: 283.0494396
AC84: 0.0069 | AD84: 94.05827263 | AE84: 316.5161618
AC85: 0.007 | AD85: 101.1111111 | AE85: 354.3570212
AC86: 0.0071 | AD86: 108.9060642 | AE86: 397.2822515
AC87: 0.0072 | AD87: 117.5510204 | AE87: 446.1452794
AC88: 0.0073 | AD88: 127.1742112 | AE88: 501.9778192
AC89: 0.0074 | AD89: 137.9289941 | AE89: 566.0352371
AC90: 0.0075 | AD90: 150 | AE90: 639.8557233
AC91: 0.0076 | AD91: 163.6111111 | AE91: 725.3382266
AC92: 0.0077 | AD92: 179.0359168 | AE92: 824.8461817
AC93: 0.0078 | AD93: 196.6115702 | AE93: 941.3471361
AC94: 0.0079 | AD94: 216.7573696 | AE94: 1078.603022
AC95: 0.008 | AD95: 240 | AE95: 1241.432931
AC96: 0.0081 | AD96: 267.0083102 | AE96: 1436.081354
AC97: 0.0082 | AD97: 298.6419753 | AE97: 1670.742553
AC98: 0.0083 | AD98: 336.0207612 | AE98: 1956.320549
AC99: 0.0084 | AD99: 380.625 | AE99: 2307.552386
AC100: 0.0085 | AD100: 434.4444444 | AE100: 2744.704874
AC101: 0.0086 | AD101: 500.2040816 | AE101: 3296.201078
AC102: 0.0087 | AD102: 581.7159763 | AE102: 4002.799869
AC103: 0.0088 | AD103: 684.4444444 | AE103: 4924.459493
AC104: 0.0089 | AD104: 816.446281 | AE104: 6152.024119
AC105: 0.009 | AD105: 990 | AE105: 7827.977678
AC106: 0.0091 | AD106: 1224.567901 | AE106: 10185.1736
AC107: 0.0092 | AD107: 1552.5 | AE107: 13623.52993
AC108: 0.0093 | AD108: 2030.816327 | AE108: 18873.31723
AC109: 0.0094 | AD109: 2767.777778 | AE109: 27375.78477
AC110: 0.0095 | AD110: =IF($AB$5=1,$C$2/($I$5+$F$5+$C$5+($H$4-$E$4-$B$4)*AC110),(0.08205821*$AB$9)/$C$2)^($H$4-$E$4-$B$4)*($I$5+$H$4*AC110)^$H$4/($C$5-$B$4*AC110)^$B$4/($F$5-$E$4*AC110)^$E$4 -> 3990 | AE110: 42280.61173
AC111: 0.0096 | AD111: 6240 | AE111: 71507.61122
AC112: 0.0097 | AD112: 11101.11111 | AE112: 139553.6725
AC113: 0.0098 | AD113: 24990 | AE113: 353281.2318
AC114: 0.0099 | AD114: 99990 | AE114: 1681083.49
AC115: =MIN($C$5/$B$4,$F$5/$E$4)-(MIN($C$5/$B$4,$F$5/$E$4)+$I$5/$H$4)/250 -> 0.00996 | AD115: 624990 | AE115: =0.00831451*$AB$9*AD115*(LN(AD115/$AE$11)-1)/$AE$11 -> 12717846.28
AC116: =MIN($C$5/$B$4,$F$5/$E$4)-(MIN($C$5/$B$4,$F$5/$E$4)+$I$5/$H$4)/1000 -> 0.00999 | AD116: 9999990 | AE116: =0.00831451*$AB$9*AD116*(LN(AD116/$AE$11)-1)/$AE$11 -> 256989490.4

Sheet Modifiable
A2: =IF($AD$5=1,"Pressure:","Volume:") -> Pressure: | C2: 3 | D2: =IF($AD$5=1,IF($AD$5=1,"atm","bar"),"L") -> atm | AD2: 1 | AE2: Celsius | AF2: A= | AG2: 5
A3: Temperature: | C3: =$AD$9-273*IF($AD$2=1,1,0) -> 1296 | D3: =IF(AD2=1,"C","K") -> C | AE3: Kelvin
A4: Reaction: | B4: 1 | C4: A | D4: + | E4: 0 | F4: B | H4: 2 | I4: C | J4: + | K4: 0 | L4: D | AD4: =VLOOKUP($AG$11,$AE$13:$AG$116,3)/$AG$11/10000 -> 0.005389314317 | AE4: Equilibrium Sensitivity | AF4: B= | AG4: 0
A5: initial (moles): | C5: 1 | F5: 1 | I5: 0 | L5: 2 | M5: Units: | AD5: 1 | AE5: Constant Pressure | AF5: C= | AG5: 0
A6: =IF($AD$7=1,"initial (atm):","initial (M):") -> initial (atm): | C6: =IF($AD$5=1,$C$2*C5/SUM($C$5:$L$5),0.08205821*$AD$9*C5/$C$2)/(0.08205821*$AD$9)^($AD$7-1) -> 0.75 | F6: =IF($AD$5=1,$C$2*F5/SUM($C$5:$L$5),0.08205821*$AD$9*F5/$C$2)/(0.08205821*$AD$9)^($AD$7-1) -> 0.75 | I6: =IF($AD$5=1,$C$2*I5/SUM($C$5:$L$5),0.08205821*$AD$9*I5/$C$2)/(0.08205821*$AD$9)^($AD$7-1) -> 0 | L6: =IF($AD$5=1,$C$2*L5/SUM($C$5:$L$5),0.08205821*$AD$9*L5/$C$2)/(0.08205821*$AD$9)^($AD$7-1) -> 1.5 | M6: =IF($AD$7=1,"Qpi = ","Qci = ") -> Qpi = | N6: =IF(C5*F5=0,"∞",(I6^$H$4)*(L6^$K$4)/(F6)^$E$4/(C6)^$B$4) -> 0 | P6: Initial Reaction Quotient | AE6: Constant Volume | AF6: D= | AG6: 0
A7: change (moles): | C7: =-N7*B4 -> -0.9843661455 | F7: =-E4*N7 -> 0 | I7: =H4*N7 -> 1.968732291 | L7: =K4*N7 -> 0 | M7: x = | N7: =-MIN(IF($H$4=0,$L$5/$K$4,$I$5/$H$4),IF($K$4=0,$I$5/$H$4,$L$5/$K$4))+($AD$11/29999)*(MIN(IF($B$4=0,$F$5/$E$4,$C$5/$B$4),IF($E$4=0,$C$5/$B$4,$F$5/$E$4))+MIN(IF($H$4=0,$L$5/$K$4,$I$5/$H$4),IF($K$4=0,$I$5/$H$4,$L$5/$K$4))) -> 0.9843661455 | O7: mol | P7: Extent of Reaction | AD7: 1 | AE7: Atmospheres | AF7: E= | AG7: 0
A8: =IF(ABS(N9/N10-1)<AD4,"equilibrium (moles):","equilibrating ... (moles):") -> equilibrating ... (moles): | C8: =C7+C5 -> 0.01563385446 | F8: =F7+F5 -> 1 | I8: =I7+I5 -> 1.968732291 | L8: =L5+L7 -> 2 | AE8: Molarity | AF8: F= | AG8: 0
A9: =IF(ABS(N9/N10-1)<AD4,IF($AD$7=1,"equilibrium (atm):","equilibrium (M)"),IF($AD$7=1,"equilibrating ... (atm):","equilibrating…(M)")) -> equilibrating ... (atm): | C9: =IF($AD$5=1,$C$2*(C5+C7)/SUM($C$5:$L$5,$C$7:$L$7),(C5+C7)*0.08205821*$AD$9/$C$2)/(0.08205821*$AD$9)^($AD$7-1) -> 0.009409734762 | F9: =IF($AD$5=1,$C$2*(F5+F7)/SUM($C$5:$L$5,$C$7:$L$7),(F5+F7)*0.08205821*$AD$9/$C$2)/(0.08205821*$AD$9)^($AD$7-1) -> 0.601881947 | I9: =IF($AD$5=1,$C$2*(I5+I7)/SUM($C$5:$L$5,$C$7:$L$7),(I5+I7)*0.08205821*$AD$9/$C$2)/(0.08205821*$AD$9)^($AD$7-1) -> 1.184944424 | L9: =IF($AD$5=1,$C$2*(L5+L7)/SUM($C$5:$L$5,$C$7:$L$7),(L5+L7)*0.08205821*$AD$9/$C$2)/(0.08205821*$AD$9)^($AD$7-1) -> 1.203763894 | M9: =IF($AD$7=1,"Qp = ","Qc = ") -> Qp = | N9: =(I9^H4)*(L9^K4)/(C9^B4)/(F9^E4) -> 149.2170953 | P9: Reaction Quotient | AD9: 1569 | AE9: Temperature (k) | AF9: lnK = | AG9: =AG2+AG4/AD9+AG5*LN(AD9)+AG6*AD9+AG7*AD9^2+AG8*AD9^3 -> 5
M10: =IF($AD$7=1,"Kp = ","Kc = ") -> Kp = | N10: =IF($AD$7=1,$AG$11,$AG$11*(0.08205821*$AD$9)^(E4+B4-H4)) -> 148.4131591 | P10: Equilibrium Constant | AG10: (LnK = A + B/T +ClnK + DT + ET^2 + FT^3)
A11: =IF(ABS($N$9/$N$10-1)<AD4,"",IF($N$9>$N$10,"¬","®")) -> ¬ | C11: =IF(ABS(N9/N10-1)<AD4,"Equilibrium!",IF(N9>N10,"Too far.","Not far enough…")) -> Too far. | I11: =IF(ABS($N$9/$N$10-1)<AD4,"",IF($N$9>$N$10,"¬","®")) -> ¬ | M11: G = | N11: =0.00831451*$AD$9*N9*(LN(N9/N10)-1)/N10 -> -13.04527514 | O11: kJ | P11: Gibb's Free Energy | AD11: 29530 | AE11: Slider Position | AF11: Kp = | AG11: =EXP(AG9) -> 148.4131591
M12: ΔG = | N12: =0.00831451*$AD$9*LN(N9/N10) -> 0.0704750143 | O12: kJ/mol | AD12: x | AE12: Qp | AF12: G
AD13: =-MIN(IF($H$4=0,$L$5/$K$4,$I$5/$H$4),IF($K$4=0,$I$5/$H$4,$L$5/$K$4)) -> 0 | AE13: 0 | AF13: 0 | AG13: =(AE14-AE13)/(AD14-AD13) -> 0.00300225244
AD14: =(MIN(IF($B$4=0,$F$5/$E$4,$C$5/$B$4),IF($E$4=0,$C$5/$B$4,$F$5/$E$4))+MIN(IF($H$4=0,$L$5/$K$4,$I$5/$H$4),IF($K$4=0,$I$5/$H$4,$L$5/$K$4)))/1000+AD13 -> 0.001 | AE14: =IF($AD$5=1,$C$2/($I$5+$F$5+$C$5+$L$5+($H$4+$K$4-$E$4-$B$4)*AD14),(0.08205821*$AD$9)/$C$2)^($H$4+$K$4-$E$4-$B$4)*($I$5+$H$4*AD14)^$H$4*($L$5+$K$4*AD14)^$K$4/($C$5-$B$4*AD14)^$B$4/($F$5-$E$4*AD14)^$E$4 -> 3.00225244e-06 | AF14: =0.00831451*$AD$9*AE14*(LN(AE14/$AG$11)-1)/$AG$11 -> -4.939134641e-06 | AG14: =(AE15-AE13)/(AD15-AD13) -> 0.01203615661
AD15: =(MIN(IF($B$4=0,$F$5/$E$4,$C$5/$B$4),IF($E$4=0,$C$5/$B$4,$F$5/$E$4))+MIN(IF($H$4=0,$L$5/$K$4,$I$5/$H$4),IF($K$4=0,$I$5/$H$4,$L$5/$K$4)))/250+AD13 -> 0.004 | AE15: =IF($AD$5=1,$C$2/($I$5+$F$5+$C$5+$L$5+($H$4+$K$4-$E$4-$B$4)*AD15),(0.08205821*$AD$9)/$C$2)^($H$4+$K$4-$E$4-$B$4)*($I$5+$H$4*AD15)^$H$4*($L$5+$K$4*AD15)^$K$4/($C$5-$B$4*AD15)^$B$4/($F$5-$E$4*AD15)^$E$4 -> 4.814462646e-05 | AF15: -6.746193259e-05 | AG15: =(AE16-AE14)/(AD16-AD14) -> 0.03325248489
AD16: =(MIN(IF($B$4=0,$F$5/$E$4,$C$5/$B$4),IF($E$4=0,$C$5/$B$4,$F$5/$E$4))+MIN(IF($H$4=0,$L$5/$K$4,$I$5/$H$4),IF($K$4=0,$I$5/$H$4,$L$5/$K$4)))/100+AD13 -> 0.01 | AE16: 0.0003022746165 | AF16: -0.000374745606 | AG16: 0.07314082378
AD17: =(MIN(IF($B$4=0,$F$5/$E$4,$C$5/$B$4),IF($E$4=0,$C$5/$B$4,$F$5/$E$4))+MIN(IF($H$4=0,$L$5/$K$4,$I$5/$H$4),IF($K$4=0,$I$5/$H$4,$L$5/$K$4)))/100+AD16 -> 0.02 | AE17: 0.001218397807 | AF17: -0.001361223133 | AG17: 0.1230254828
AD18: =(MIN(IF($B$4=0,$F$5/$E$4,$C$5/$B$4),IF($E$4=0,$C$5/$B$4,$F$5/$E$4))+MIN(IF($H$4=0,$L$5/$K$4,$I$5/$H$4),IF($K$4=0,$I$5/$H$4,$L$5/$K$4)))/100+AD17 -> 0.03 | AE18: 0.002762784273 | AF18: -0.002887828546 | AG18: 0.1866048621
AD19: 0.04 | AE19: 0.00495049505 | AF19: -0.004920756847 | AG19: 0.2517243341
AD20: 0.05 | AE20: 0.007797270955 | AF20: -0.007439074305 | AG20: 0.3184536565
AD21: 0.06 | AE21: 0.01131956818 | AF21: -0.01042867151 | AG21: 0.3868662612
AD22: 0.07 | AE22: 0.01553459618 | AF22: -0.0138797332 | AG22: 0.4570394938
AD23: 0.08 | AE23: 0.02046035806 | AF23: -0.01778543465 | AG23: 0.5290548709
AD24: 0.09 | AE24: 0.0261156936 | AF24: -0.02214118421 | AG24: 0.6029983573
AD25: 0.1 | AE25: 0.0325203252 | AF25: -0.02694414711 | AG25: 0.6789606658
AD26: 0.11 | AE26: 0.03969490691 | AF26: -0.03219292906 | AG26: 0.7570375792
AD27: 0.12 | AE27: 0.04766107679 | AF27: -0.03788735789 | AG27: 0.8373302993
AD28: 0.13 | AE28: 0.0564415129 | AF28: -0.04402832849 | AG28: 0.9199458236
A29: Developed by Prof. Douglas A. Vander Griend, Calvin College, Grand Rapids, MI | AD29: 0.14 | AE29: 0.06605999326 | AF29: -0.05061769082 | AG29: 1.004997353
AD30: 0.15 | AE30: 0.07654145996 | AF30: -0.05765816833 | AG30: 1.092604733
AD31: 0.16 | AE31: 0.08791208791 | AF31: -0.0651532985 | AG31: 1.182894931
AD32: 0.17 | AE32: 0.1001993586 | AF32: -0.07310739026 | AG32: 1.27600256
AD33: 0.18 | AE33: 0.1134321391 | AF33: -0.08152549423 | AG33: 1.372070434
AD34: 0.19 | AE34: 0.1276407673 | AF34: -0.09041338347 | AG34: 1.471250188
AD35: 0.2 | AE35: 0.1428571429 | AF35: -0.09977754266 | AG35: 1.57370294
AD36: 0.21 | AE36: 0.1591148261 | AF36: -0.1096251645 | AG36: 1.679600021
AD37: 0.22 | AE37: 0.1764491433 | AF37: -0.1199641524 | AG37: 1.789123761
AD38: 0.23 | AE38: 0.1948973013 | AF38: -0.1308031284 | AG38: 1.902468358
AD39: 0.24 | AE39: 0.2144985104 | AF39: -0.1421514465 | AG39: 2.019840818
AD40: 0.25 | AE40: 0.2352941176 | AF40: -0.1540192106 | AG40: 2.141461993
AD41: 0.26 | AE41: 0.2573277503 | AF41: -0.1664172969 | AG41: 2.267567705
AD42: 0.27 | AE42: 0.2806454718 | AF42: -0.1793573807 | AG42: 2.398409994
AD43: 0.28 | AE43: 0.3052959502 | AF43: -0.1928519678 | AG43: 2.534258472
AD44: 0.29 | AE44: 0.3313306412 | AF44: -0.2069144301 | AG44: 2.675401828
AD45: 0.3 | AE45: 0.3588039867 | AF45: -0.2215590461 | AG45: 2.82214947
AD46: 0.31 | AE46: 0.3877736306 | AF46: -0.236801046 | AG46: 2.974833344
AD47: 0.32 | AE47: 0.4183006536 | AF47: -0.2526566619 | AG47: 3.133809939
AD48: 0.33 | AE48: 0.4504498294 | AF48: -0.2691431834 | AG48: 3.299462502
AD49: 0.34 | AE49: 0.4842899036 | AF49: -0.2862790189 | AG49: 3.472203491
AD50: 0.35 | AE50: 0.5198938992 | AF50: -0.304083763 | AG50: 3.652477295
AD51: 0.36 | AE51: 0.5573394495 | AF51: -0.3225782709 | AG51: 3.840763251
AD52: 0.37 | AE52: 0.5967091642 | AF52: -0.3417847397 | AG52: 4.037579003
AD53: 0.38 | AE53: 0.6380910296 | AF53: -0.3617267978 | AG53: 4.243484244
AD54: 0.39 | AE54: 0.6815788491 | AF54: -0.3824296033 | AG54: 4.459084883
AD55: 0.4 | AE55: 0.7272727273 | AF55: -0.4039199514 | AG55: 4.685037713
AD56: 0.41 | AE56: 0.7752796034 | AF56: -0.4262263932 | AG56: 4.922055632
AD57: 0.42 | AE57: 0.8257138399 | AF57: -0.4493793655 | AG57: 5.170913499
AD58: 0.43 | AE58: 0.8786978734 | AF58: -0.4734113337 | AG58: 5.432454723
AD59: 0.44 | AE59: 0.9343629344 | AF59: -0.4983569499 | AG59: 5.707598672
AD60: 0.45 | AE60: 0.9928498468 | AF60: -0.5242532261 | AG60: 5.997349047
AD61: 0.46 | AE61: 1.054309915 | AF61: -0.5511397261 | AG61: 6.302803343
AD62: 0.47 | AE62: 1.118905914 | AF62: -0.5790587771 | AG62: 6.625163576
AD63: 0.48 | AE63: 1.186813187 | AF63: -0.6080557047 | AG63: 6.965748468
AD64: 0.49 | AE64: 1.258220883 | AF64: -0.6381790921 | AG64: 7.326007326
AD65: 0.5 | AE65: 1.333333333 | AF65: -0.6694810697 | AG65: 7.707535876
AD66: 0.51 | AE66: 1.412371601 | AF66: -0.7020176356 | AG66: 8.112094395
AD67: 0.52 | AE67: 1.495575221 | AF67: -0.7358490136 | AG67: 8.541628513
AD68: 0.53 | AE68: 1.583204171 | AF68: -0.7710400534 | AG68: 8.998293142
AD69: 0.54 | AE69: 1.675541084 | AF69: -0.807660678 | AG69: 9.484480106
AD70: 0.55 | AE70: 1.772893773 | AF70: -0.8457863849 | AG70: 10.0028501
AD71: 0.56 | AE71: 1.875598086 | AF71: -0.8854988112 | AG71: 10.55636983
AD72: 0.57 | AE72: 1.984021169 | AF72: -0.9268863686 | AG72: 11.14835521
AD73: 0.58 | AE73: 2.09856519 | AF73: -0.9700449618 | AG73: 11.78252195
AD74: 0.59 | AE74: 2.219671608 | AF74: -1.015078802 | AG74: 12.46304483
AD75: 0.6 | AE75: 2.347826087 | AF75: -1.062101331 | AG75: 13.19462749
AD76: 0.61 | AE76: 2.483564158 | AF76: -1.111236273 | AG76: 13.98258492
AD77: 0.62 | AE77: 2.627477785 | AF77: -1.162618838 | AG77: 14.83294147
AD78: 0.63 | AE78: 2.780222988 | AF78: =0.00831451*$AD$9*AE78*(LN(AE78/$AG$11)-1)/$AG$11 -> -1.2163971 | AG78: 15.75254751
AD79: 0.64 | AE79: =IF($AD$5=1,$C$2/($I$5+$F$5+$C$5+$L$5+($H$4+$K$4-$E$4-$B$4)*AD79),(0.08205821*$AD$9)/$C$2)^($H$4+$K$4-$E$4-$B$4)*($I$5+$H$4*AD79)^$H$4*($L$5+$K$4*AD79)^$K$4/($C$5-$B$4*AD79)^$B$4/($F$5-$E$4*AD79)^$E$4 -> 2.942528736 | AF79: -1.272733578 | AG79: =(AE80-AE78)/(AD80-AD78) -> 16.74921929
AD80: 0.65 | AE80: 3.115207373 | AF80: -1.331807074 | AG80: 17.83190707
AD81: 0.66 | AE81: 3.299166877 | AF81: -1.39381478 | AG81: 19.01089861
AD82: =(MIN(IF($B$4=0,$F$5/$E$4,$C$5/$B$4),IF($E$4=0,$C$5/$B$4,$F$5/$E$4))+MIN(IF($H$4=0,$L$5/$K$4,$I$5/$H$4),IF($K$4=0,$I$5/$H$4,$L$5/$K$4)))/100+AD81 -> 0.67 | AE82: 3.495425346 | AF82: -1.458974753 | AG82: 20.2980664
AD83: 0.68 | AE83: 3.705128205 | AF83: -1.527528782 | AG83: 21.70717003
AD84: 0.69 | AE84: 3.929568746 | AF84: -1.599745767 | AG84: 23.25422804
AD85: 0.7 | AE85: 4.170212766 | AF85: -1.675925691 | AG85: 24.95797824
AD86: 0.71 | AE86: 4.428728311 | AF86: -1.756404321 | AG86: 26.84045129
AD87: 0.72 | AE87: 4.707021792 | AF87: -1.84155881 | AG87: 28.92769063
AD88: 0.73 | AE88: 5.007282124 | AF88: -1.931814388 | AG88: 31.25066309
AD89: 0.74 | AE89: 5.332035054 | AF89: -2.027652424 | AG89: 33.84642014
AD90: 0.75 | AE90: 5.684210526 | AF90: -2.129620175 | AG90: 36.75959186
AD91: 0.76 | AE91: 6.067226891 | AF91: -2.238342685 | AG91: 40.04432739
AD92: 0.77 | AE92: 6.485097074 | AF92: -2.354537373 | AG92: 43.76684108
AD93: 0.78 | AE93: 6.942563712 | AF93: -2.479032091 | AG93: 48.00879079
AD94: 0.79 | AE94: 7.44527289 | AF94: -2.612787629 | AG94: 52.87181438
AD95: 0.8 | AE95: 8 | AF95: -2.756926037 | AG95: 58.48370204
AD96: 0.81 | AE96: 8.614946931 | AF96: -2.91276658 | AG96: 65.00691563
AD97: 0.82 | AE97: 9.300138313 | AF97: -3.081871876 | AG97: 72.65053435
AD98: 0.83 | AE98: 10.06795762 | AF98: -3.266107749 | AG98: 81.68729925
AD99: 0.84 | AE99: 10.9338843 | AF99: -3.467721823 | AG99: 92.47840777
AD100: 0.85 | AE100: 11.91752577 | AF100: -3.689448085 | AG100: 105.5103707
AD101: 0.86 | AE101: 13.04409171 | AF101: -3.934648006 | AG101: 121.4511478
AD102: 0.87 | AE102: 14.34654873 | AF102: -4.207503991 | AG102: 141.2380374
AD103: 0.88 | AE103: 15.86885246 | AF103: -4.513289071 | AG103: 166.2196913
AD104: 0.89 | AE104: 17.67094255 | AF104: -4.858749789 | AG104: 198.3941117
AD105: 0.9 | AE105: 19.83673469 | AF105: -5.252660309 | AG105: 240.8249022
AD106: 0.91 | AE106: 22.4874406 | AF106: -5.706640075 | AG106: 298.4071677
AD107: 0.92 | AE107: 25.80487805 | AF107: -6.236381745 | AG107: 379.3660171
AD108: 0.93 | AE108: 30.07476094 | AF108: -6.863514266 | AG108: 498.4200652
AD109: 0.94 | AE109: 35.77327935 | AF109: -7.618391607 | AG109: 684.1407409
AD110: 0.95 | AE110: 43.75757576 | AF110: -8.543868477 | AG110: 998.4328066
AD111: 0.96 | AE111: 55.74193548 | AF111: -9.697810156 | AG111: 1598.43912
AD112: 0.97 | AE112: 75.72635815 | AF112: -11.13518459 | AG112: 2998.445394
AD113: 0.98 | AE113: 115.7108434 | AF113: -12.70254914 | AG113: 7998.451632
AD114: 0.99 | AE114: 235.6953908 | AF114: -11.13484628 | AG114: 29998.4566
AD115: =MIN(IF($B$4=0,$F$5/$E$4,$C$5/$B$4),IF($E$4=0,$C$5/$B$4,$F$5/$E$4))-(MIN(IF($B$4=0,$F$5/$E$4,$C$5/$B$4),IF($E$4=0,$C$5/$B$4,$F$5/$E$4))+MIN(IF($H$4=0,$L$5/$K$4,$I$5/$H$4),IF($K$4=0,$I$5/$H$4,$L$5/$K$4)))/250 -> 0.996 | AE115: 595.6861489 | AF115: 20.40565916 | AG115: 239998.4606
AD116: =MIN(IF($B$4=0,$F$5/$E$4,$C$5/$B$4),IF($E$4=0,$C$5/$B$4,$F$5/$E$4))-(MIN(IF($B$4=0,$F$5/$E$4,$C$5/$B$4),IF($E$4=0,$C$5/$B$4,$F$5/$E$4))+MIN(IF($H$4=0,$L$5/$K$4,$I$5/$H$4),IF($K$4=0,$I$5/$H$4,$L$5/$K$4)))/1000 -> 0.999 | AE116: 2395.681536 | AF116: 375.1313359 | AG116: =(AE116-AE115)/(AD116-AD115) -> 599998.4625

Sheet Unprotected
A2: =IF($AD$5=1,"Pressure:","Volume:") -> Pressure: | C2: 3 | D2: =IF($AD$5=1,IF($AD$5=1,"atm","bar"),"L") -> atm | AD2: 1 | AE2: Celsius | AF2: A= | AG2: 5
A3: Temperature: | C3: =$AD$9-273*IF($AD$2=1,1,0) -> 1296 | D3: =IF(AD2=1,"C","K") -> C | AE3: Kelvin
A4: Reaction: | B4: 1 | C4: A | D4: + | E4: 0 | F4: B | H4: 2 | I4: C | J4: + | K4: 0 | L4: D | AD4: =(VLOOKUP(AG11,AE13:AI116,3)+(VLOOKUP(AG11,AE13:AI116,5)-VLOOKUP(AG11,AE13:AI116,3))*(AG11-VLOOKUP(AG11,AE13:AH116,1))/(VLOOKUP(AG11,AE13:AH116,4)-VLOOKUP(AG11,AE13:AH116,1)))/AG11/10000 -> 0.009429520778 | AE4: Equilibrium Sensitivity | AF4: B= | AG4: 0
A5: initial (moles): | C5: 1 | F5: 1 | I5: 0 | L5: 2 | M5: Units: | AD5: 1 | AE5: Constant Pressure | AF5: C= | AG5: 0
A6: =IF($AD$7=1,"initial (atm):","initial (M):") -> initial (atm): | C6: =IF($AD$5=1,$C$2*C5/SUM($C$5:$L$5),0.08205821*$AD$9*C5/$C$2)/(0.08205821*$AD$9)^($AD$7-1) -> 0.75 | F6: =IF($AD$5=1,$C$2*F5/SUM($C$5:$L$5),0.08205821*$AD$9*F5/$C$2)/(0.08205821*$AD$9)^($AD$7-1) -> 0.75 | I6: =IF($AD$5=1,$C$2*I5/SUM($C$5:$L$5),0.08205821*$AD$9*I5/$C$2)/(0.08205821*$AD$9)^($AD$7-1) -> 0 | L6: =IF($AD$5=1,$C$2*L5/SUM($C$5:$L$5),0.08205821*$AD$9*L5/$C$2)/(0.08205821*$AD$9)^($AD$7-1) -> 1.5 | M6: =IF($AD$7=1,"Qpi = ","Qci = ") -> Qpi = | N6: =IF(C5*F5=0,"∞",(I6^$H$4)*(L6^$K$4)/(F6)^$E$4/(C6)^$B$4) -> 0 | P6: Initial Reaction Quotient | AE6: Constant Volume | AF6: D= | AG6: 0
A7: change (moles): | C7: =-N7*B4 -> -0.9844661489 | F7: =-E4*N7 -> 0 | I7: =H4*N7 -> 1.968932298 | L7: =K4*N7 -> 0 | M7: x = | N7: =-MIN(IF($H$4=0,$L$5/$K$4,$I$5/$H$4),IF($K$4=0,$I$5/$H$4,$L$5/$K$4))+($AD$11/29999)*(MIN(IF($B$4=0,$F$5/$E$4,$C$5/$B$4),IF($E$4=0,$C$5/$B$4,$F$5/$E$4))+MIN(IF($H$4=0,$L$5/$K$4,$I$5/$H$4),IF($K$4=0,$I$5/$H$4,$L$5/$K$4))) -> 0.9844661489 | O7: mol | P7: Extent of Reaction | AD7: 1 | AE7: Atmospheres | AF7: E= | AG7: 0
A8: =IF(ABS(N9/N10-1)<AD4,"equilibrium (moles):","equilibrating ... (moles):") -> equilibrating ... (moles): | C8: =C7+C5 -> 0.01553385113 | F8: =F7+F5 -> 1 | I8: =I7+I5 -> 1.968932298 | L8: =L5+L7 -> 2 | AE8: Molarity | AF8: F= | AG8: 0
A9: =IF(ABS(N9/N10-1)<AD4,IF($AD$7=1,"equilibrium (atm):","equilibrium (M)"),IF($AD$7=1,"equilibrating ... (atm):","equilibrating…(M)")) -> equilibrating ... (atm): | C9: =IF($AD$5=1,$C$2*(C5+C7)/SUM($C$5:$L$5,$C$7:$L$7),(C5+C7)*0.08205821*$AD$9/$C$2)/(0.08205821*$AD$9)^($AD$7-1) -> 0.009349356981 | F9: =IF($AD$5=1,$C$2*(F5+F7)/SUM($C$5:$L$5,$C$7:$L$7),(F5+F7)*0.08205821*$AD$9/$C$2)/(0.08205821*$AD$9)^($AD$7-1) -> 0.6018698714 | I9: =IF($AD$5=1,$C$2*(I5+I7)/SUM($C$5:$L$5,$C$7:$L$7),(I5+I7)*0.08205821*$AD$9/$C$2)/(0.08205821*$AD$9)^($AD$7-1) -> 1.185041029 | L9: =IF($AD$5=1,$C$2*(L5+L7)/SUM($C$5:$L$5,$C$7:$L$7),(L5+L7)*0.08205821*$AD$9/$C$2)/(0.08205821*$AD$9)^($AD$7-1) -> 1.203739743 | M9: =IF($AD$7=1,"Qp = ","Qc = ") -> Qp = | N9: =(I9^H4)*(L9^K4)/(C9^B4)/(F9^E4) -> 150.2052219 | P9: Reaction Quotient | AD9: 1569 | AE9: Temperature (k) | AF9: lnK = | AG9: =AG2+AG4/AD9+AG5*LN(AD9)+AG6*AD9+AG7*AD9^2+AG8*AD9^3 -> 5
M10: =IF($AD$7=1,"Kp = ","Kc = ") -> Kp = | N10: =IF($AD$7=1,$AG$11,$AG$11*(0.08205821*$AD$9)^(E4+B4-H4)) -> 148.4131591 | P10: Equilibrium Constant | AG10: (LnK = A + B/T +ClnK + DT + ET^2 + FT^3)
A11: =IF(ABS($N$9/$N$10-1)<AD4,"",IF($N$9>$N$10,"¬","®")) -> ¬ | C11: =IF(ABS(N9/N10-1)<AD4,"Equilibrium!",IF(N9>N10,"Too far.","Not far enough…")) -> Too far. | I11: =IF(ABS($N$9/$N$10-1)<AD4,"",IF($N$9>$N$10,"¬","®")) -> ¬ | M11: G = | N11: =0.00831451*$AD$9*N9*(LN(N9/N10)-1)/N10 -> -13.04451897 | O11: kJ | P11: Gibb's Free Energy | AD11: 29533 | AE11: Slider Position | AF11: Kp = | AG11: =EXP(AG9) -> 148.4131591
M12: ΔG = | N12: =0.00831451*$AD$9*LN(N9/N10) -> 0.1565782743 | O12: kJ/mol | AD12: x | AE12: Qp | AF12: G
AD13: =-MIN(IF($H$4=0,$L$5/$K$4,$I$5/$H$4),IF($K$4=0,$I$5/$H$4,$L$5/$K$4)) -> 0 | AE13: 0 | AF13: 0 | AG13: =(AE14-AE13)/(AD14-AD13) -> 0.00300225244 | AH13: =AE14 -> 3.00225244e-06 | AI13: =AG14 -> 0.01203615661
AD14: =(MIN(IF($B$4=0,$F$5/$E$4,$C$5/$B$4),IF($E$4=0,$C$5/$B$4,$F$5/$E$4))+MIN(IF($H$4=0,$L$5/$K$4,$I$5/$H$4),IF($K$4=0,$I$5/$H$4,$L$5/$K$4)))/1000+AD13 -> 0.001 | AE14: =IF($AD$5=1,$C$2/($I$5+$F$5+$C$5+$L$5+($H$4+$K$4-$E$4-$B$4)*AD14),(0.08205821*$AD$9)/$C$2)^($H$4+$K$4-$E$4-$B$4)*($I$5+$H$4*AD14)^$H$4*($L$5+$K$4*AD14)^$K$4/($C$5-$B$4*AD14)^$B$4/($F$5-$E$4*AD14)^$E$4 -> 3.00225244e-06 | AF14: =0.00831451*$AD$9*AE14*(LN(AE14/$AG$11)-1)/$AG$11 -> -4.939134641e-06 | AG14: =(AE15-AE13)/(AD15-AD13) -> 0.01203615661 | AH14: =AE15 -> 4.814462646e-05 | AI14: =AG15 -> 0.03325248489
AD15: =(MIN(IF($B$4=0,$F$5/$E$4,$C$5/$B$4),IF($E$4=0,$C$5/$B$4,$F$5/$E$4))+MIN(IF($H$4=0,$L$5/$K$4,$I$5/$H$4),IF($K$4=0,$I$5/$H$4,$L$5/$K$4)))/250+AD13 -> 0.004 | AE15: =IF($AD$5=1,$C$2/($I$5+$F$5+$C$5+$L$5+($H$4+$K$4-$E$4-$B$4)*AD15),(0.08205821*$AD$9)/$C$2)^($H$4+$K$4-$E$4-$B$4)*($I$5+$H$4*AD15)^$H$4*($L$5+$K$4*AD15)^$K$4/($C$5-$B$4*AD15)^$B$4/($F$5-$E$4*AD15)^$E$4 -> 4.814462646e-05 | AF15: -6.746193259e-05 | AG15: =(AE16-AE14)/(AD16-AD14) -> 0.03325248489 | AH15: 0.0003022746165 | AI15: 0.07314082378
AD16: =(MIN(IF($B$4=0,$F$5/$E$4,$C$5/$B$4),IF($E$4=0,$C$5/$B$4,$F$5/$E$4))+MIN(IF($H$4=0,$L$5/$K$4,$I$5/$H$4),IF($K$4=0,$I$5/$H$4,$L$5/$K$4)))/100+AD13 -> 0.01 | AE16: 0.0003022746165 | AF16: -0.000374745606 | AG16: 0.07314082378 | AH16: 0.001218397807 | AI16: 0.1230254828
AD17: =(MIN(IF($B$4=0,$F$5/$E$4,$C$5/$B$4),IF($E$4=0,$C$5/$B$4,$F$5/$E$4))+MIN(IF($H$4=0,$L$5/$K$4,$I$5/$H$4),IF($K$4=0,$I$5/$H$4,$L$5/$K$4)))/100+AD16 -> 0.02 | AE17: 0.001218397807 | AF17: -0.001361223133 | AG17: 0.1230254828 | AH17: 0.002762784273 | AI17: 0.1866048621
AD18: =(MIN(IF($B$4=0,$F$5/$E$4,$C$5/$B$4),IF($E$4=0,$C$5/$B$4,$F$5/$E$4))+MIN(IF($H$4=0,$L$5/$K$4,$I$5/$H$4),IF($K$4=0,$I$5/$H$4,$L$5/$K$4)))/100+AD17 -> 0.03 | AE18: 0.002762784273 | AF18: -0.002887828546 | AG18: 0.1866048621 | AH18: 0.00495049505 | AI18: 0.2517243341
AD19: 0.04 | AE19: 0.00495049505 | AF19: -0.004920756847 | AG19: 0.2517243341 | AH19: 0.007797270955 | AI19: 0.3184536565
AD20: 0.05 | AE20: 0.007797270955 | AF20: -0.007439074305 | AG20: 0.3184536565 | AH20: 0.01131956818 | AI20: 0.3868662612
AD21: 0.06 | AE21: 0.01131956818 | AF21: -0.01042867151 | AG21: 0.3868662612 | AH21: 0.01553459618 | AI21: 0.4570394938
AD22: 0.07 | AE22: 0.01553459618 | AF22: -0.0138797332 | AG22: 0.4570394938 | AH22: 0.02046035806 | AI22: 0.5290548709
AD23: 0.08 | AE23: 0.02046035806 | AF23: -0.01778543465 | AG23: 0.5290548709 | AH23: 0.0261156936 | AI23: 0.6029983573
AD24: 0.09 | AE24: 0.0261156936 | AF24: -0.02214118421 | AG24: 0.6029983573 | AH24: 0.0325203252 | AI24: 0.6789606658
AD25: 0.1 | AE25: 0.0325203252 | AF25: -0.02694414711 | AG25: 0.6789606658 | AH25: 0.03969490691 | AI25: 0.7570375792
AD26: 0.11 | AE26: 0.03969490691 | AF26: -0.03219292906 | AG26: 0.7570375792 | AH26: 0.04766107679 | AI26: 0.8373302993
AD27: 0.12 | AE27: 0.04766107679 | AF27: -0.03788735789 | AG27: 0.8373302993 | AH27: 0.0564415129 | AI27: 0.9199458236
AD28: 0.13 | AE28: 0.0564415129 | AF28: -0.04402832849 | AG28: 0.9199458236 | AH28: 0.06605999326 | AI28: 1.004997353
A29: Developed by Prof. Douglas A. Vander Griend, Calvin College, Grand Rapids, MI | AD29: 0.14 | AE29: 0.06605999326 | AF29: -0.05061769082 | AG29: 1.004997353 | AH29: 0.07654145996 | AI29: 1.092604733
AD30: 0.15 | AE30: 0.07654145996 | AF30: -0.05765816833 | AG30: 1.092604733 | AH30: 0.08791208791 | AI30: 1.182894931
AD31: 0.16 | AE31: 0.08791208791 | AF31: -0.0651532985 | AG31: 1.182894931 | AH31: 0.1001993586 | AI31: 1.27600256
AD32: 0.17 | AE32: 0.1001993586 | AF32: -0.07310739026 | AG32: 1.27600256 | AH32: 0.1134321391 | AI32: 1.372070434
AD33: 0.18 | AE33: 0.1134321391 | AF33: -0.08152549423 | AG33: 1.372070434 | AH33: 0.1276407673 | AI33: 1.471250188
AD34: 0.19 | AE34: 0.1276407673 | AF34: -0.09041338347 | AG34: 1.471250188 | AH34: 0.1428571429 | AI34: 1.57370294
AD35: 0.2 | AE35: 0.1428571429 | AF35: -0.09977754266 | AG35: 1.57370294 | AH35: 0.1591148261 | AI35: 1.679600021
AD36: 0.21 | AE36: 0.1591148261 | AF36: -0.1096251645 | AG36: 1.679600021 | AH36: 0.1764491433 | AI36: 1.789123761
AD37: 0.22 | AE37: 0.1764491433 | AF37: -0.1199641524 | AG37: 1.789123761 | AH37: 0.1948973013 | AI37: 1.902468358
AD38: 0.23 | AE38: 0.1948973013 | AF38: -0.1308031284 | AG38: 1.902468358 | AH38: 0.2144985104 | AI38: 2.019840818
AD39: 0.24 | AE39: 0.2144985104 | AF39: -0.1421514465 | AG39: 2.019840818 | AH39: 0.2352941176 | AI39: 2.141461993
AD40: 0.25 | AE40: 0.2352941176 | AF40: -0.1540192106 | AG40: 2.141461993 | AH40: 0.2573277503 | AI40: 2.267567705
AD41: 0.26 | AE41: 0.2573277503 | AF41: -0.1664172969 | AG41: 2.267567705 | AH41: 0.2806454718 | AI41: 2.398409994
AD42: 0.27 | AE42: 0.2806454718 | AF42: -0.1793573807 | AG42: 2.398409994 | AH42: 0.3052959502 | AI42: 2.534258472
AD43: 0.28 | AE43: 0.3052959502 | AF43: -0.1928519678 | AG43: 2.534258472 | AH43: 0.3313306412 | AI43: 2.675401828
AD44: 0.29 | AE44: 0.3313306412 | AF44: -0.2069144301 | AG44: 2.675401828 | AH44: 0.3588039867 | AI44: 2.82214947
AD45: 0.3 | AE45: 0.3588039867 | AF45: -0.2215590461 | AG45: 2.82214947 | AH45: 0.3877736306 | AI45: 2.974833344
AD46: 0.31 | AE46: 0.3877736306 | AF46: -0.236801046 | AG46: 2.974833344 | AH46: 0.4183006536 | AI46: 3.133809939
AD47: 0.32 | AE47: 0.4183006536 | AF47: -0.2526566619 | AG47: 3.133809939 | AH47: 0.4504498294 | AI47: 3.299462502
AD48: 0.33 | AE48: 0.4504498294 | AF48: -0.2691431834 | AG48: 3.299462502 | AH48: 0.4842899036 | AI48: 3.472203491
AD49: 0.34 | AE49: 0.4842899036 | AF49: -0.2862790189 | AG49: 3.472203491 | AH49: 0.5198938992 | AI49: 3.652477295
AD50: 0.35 | AE50: 0.5198938992 | AF50: -0.304083763 | AG50: 3.652477295 | AH50: 0.5573394495 | AI50: 3.840763251
AD51: 0.36 | AE51: 0.5573394495 | AF51: -0.3225782709 | AG51: 3.840763251 | AH51: 0.5967091642 | AI51: 4.037579003
AD52: 0.37 | AE52: 0.5967091642 | AF52: -0.3417847397 | AG52: 4.037579003 | AH52: 0.6380910296 | AI52: 4.243484244
AD53: 0.38 | AE53: 0.6380910296 | AF53: -0.3617267978 | AG53: 4.243484244 | AH53: 0.6815788491 | AI53: 4.459084883
AD54: 0.39 | AE54: 0.6815788491 | AF54: -0.3824296033 | AG54: 4.459084883 | AH54: 0.7272727273 | AI54: 4.685037713
AD55: 0.4 | AE55: 0.7272727273 | AF55: -0.4039199514 | AG55: 4.685037713 | AH55: 0.7752796034 | AI55: 4.922055632
AD56: 0.41 | AE56: 0.7752796034 | AF56: -0.4262263932 | AG56: 4.922055632 | AH56: 0.8257138399 | AI56: 5.170913499
AD57: 0.42 | AE57: 0.8257138399 | AF57: -0.4493793655 | AG57: 5.170913499 | AH57: 0.8786978734 | AI57: 5.432454723
AD58: 0.43 | AE58: 0.8786978734 | AF58: -0.4734113337 | AG58: 5.432454723 | AH58: 0.9343629344 | AI58: 5.707598672
AD59: 0.44 | AE59: 0.9343629344 | AF59: -0.4983569499 | AG59: 5.707598672 | AH59: 0.9928498468 | AI59: 5.997349047
AD60: 0.45 | AE60: 0.9928498468 | AF60: -0.5242532261 | AG60: 5.997349047 | AH60: 1.054309915 | AI60: 6.302803343
AD61: 0.46 | AE61: 1.054309915 | AF61: -0.5511397261 | AG61: 6.302803343 | AH61: 1.118905914 | AI61: 6.625163576
AD62: 0.47 | AE62: 1.118905914 | AF62: -0.5790587771 | AG62: 6.625163576 | AH62: 1.186813187 | AI62: 6.965748468
AD63: 0.48 | AE63: 1.186813187 | AF63: -0.6080557047 | AG63: 6.965748468 | AH63: 1.258220883 | AI63: 7.326007326
AD64: 0.49 | AE64: 1.258220883 | AF64: -0.6381790921 | AG64: 7.326007326 | AH64: 1.333333333 | AI64: 7.707535876
AD65: 0.5 | AE65: 1.333333333 | AF65: -0.6694810697 | AG65: 7.707535876 | AH65: 1.412371601 | AI65: 8.112094395
AD66: 0.51 | AE66: 1.412371601 | AF66: -0.7020176356 | AG66: 8.112094395 | AH66: 1.495575221 | AI66: 8.541628513
AD67: 0.52 | AE67: 1.495575221 | AF67: -0.7358490136 | AG67: 8.541628513 | AH67: 1.583204171 | AI67: 8.998293142
AD68: 0.53 | AE68: 1.583204171 | AF68: -0.7710400534 | AG68: 8.998293142 | AH68: 1.675541084 | AI68: 9.484480106
AD69: 0.54 | AE69: 1.675541084 | AF69: -0.807660678 | AG69: 9.484480106 | AH69: 1.772893773 | AI69: 10.0028501
AD70: 0.55 | AE70: 1.772893773 | AF70: -0.8457863849 | AG70: 10.0028501 | AH70: 1.875598086 | AI70: 10.55636983
AD71: 0.56 | AE71: 1.875598086 | AF71: -0.8854988112 | AG71: 10.55636983 | AH71: 1.984021169 | AI71: 11.14835521
AD72: 0.57 | AE72: 1.984021169 | AF72: -0.9268863686 | AG72: 11.14835521 | AH72: 2.09856519 | AI72: 11.78252195
AD73: 0.58 | AE73: 2.09856519 | AF73: -0.9700449618 | AG73: 11.78252195 | AH73: 2.219671608 | AI73: 12.46304483
AD74: 0.59 | AE74: 2.219671608 | AF74: -1.015078802 | AG74: 12.46304483 | AH74: 2.347826087 | AI74: 13.19462749
AD75: 0.6 | AE75: 2.347826087 | AF75: -1.062101331 | AG75: 13.19462749 | AH75: 2.483564158 | AI75: 13.98258492
AD76: 0.61 | AE76: 2.483564158 | AF76: -1.111236273 | AG76: 13.98258492 | AH76: 2.627477785 | AI76: 14.83294147
AD77: 0.62 | AE77: 2.627477785 | AF77: -1.162618838 | AG77: 14.83294147 | AH77: 2.780222988 | AI77: 15.75254751
AD78: 0.63 | AE78: 2.780222988 | AF78: =0.00831451*$AD$9*AE78*(LN(AE78/$AG$11)-1)/$AG$11 -> -1.2163971 | AG78: 15.75254751 | AH78: =AE79 -> 2.942528736 | AI78: =AG79 -> 16.74921929
AD79: 0.64 | AE79: =IF($AD$5=1,$C$2/($I$5+$F$5+$C$5+$L$5+($H$4+$K$4-$E$4-$B$4)*AD79),(0.08205821*$AD$9)/$C$2)^($H$4+$K$4-$E$4-$B$4)*($I$5+$H$4*AD79)^$H$4*($L$5+$K$4*AD79)^$K$4/($C$5-$B$4*AD79)^$B$4/($F$5-$E$4*AD79)^$E$4 -> 2.942528736 | AF79: -1.272733578 | AG79: =(AE80-AE78)/(AD80-AD78) -> 16.74921929 | AH79: 3.115207373 | AI79: 17.83190707
AD80: 0.65 | AE80: 3.115207373 | AF80: -1.331807074 | AG80: 17.83190707 | AH80: 3.299166877 | AI80: 19.01089861
AD81: 0.66 | AE81: 3.299166877 | AF81: -1.39381478 | AG81: 19.01089861 | AH81: 3.495425346 | AI81: 20.2980664
AD82: =(MIN(IF($B$4=0,$F$5/$E$4,$C$5/$B$4),IF($E$4=0,$C$5/$B$4,$F$5/$E$4))+MIN(IF($H$4=0,$L$5/$K$4,$I$5/$H$4),IF($K$4=0,$I$5/$H$4,$L$5/$K$4)))/100+AD81 -> 0.67 | AE82: 3.495425346 | AF82: -1.458974753 | AG82: 20.2980664 | AH82: 3.705128205 | AI82: 21.70717003
AD83: 0.68 | AE83: 3.705128205 | AF83: -1.527528782 | AG83: 21.70717003 | AH83: 3.929568746 | AI83: 23.25422804
AD84: 0.69 | AE84: 3.929568746 | AF84: -1.599745767 | AG84: 23.25422804 | AH84: 4.170212766 | AI84: 24.95797824
AD85: 0.7 | AE85: 4.170212766 | AF85: -1.675925691 | AG85: 24.95797824 | AH85: 4.428728311 | AI85: 26.84045129
AD86: 0.71 | AE86: 4.428728311 | AF86: -1.756404321 | AG86: 26.84045129 | AH86: 4.707021792 | AI86: 28.92769063
AD87: 0.72 | AE87: 4.707021792 | AF87: -1.84155881 | AG87: 28.92769063 | AH87: 5.007282124 | AI87: 31.25066309
AD88: 0.73 | AE88: 5.007282124 | AF88: -1.931814388 | AG88: 31.25066309 | AH88: 5.332035054 | AI88: 33.84642014
AD89: 0.74 | AE89: 5.332035054 | AF89: -2.027652424 | AG89: 33.84642014 | AH89: 5.684210526 | AI89: 36.75959186
AD90: 0.75 | AE90: 5.684210526 | AF90: -2.129620175 | AG90: 36.75959186 | AH90: 6.067226891 | AI90: 40.04432739
AD91: 0.76 | AE91: 6.067226891 | AF91: -2.238342685 | AG91: 40.04432739 | AH91: 6.485097074 | AI91: 43.76684108
AD92: 0.77 | AE92: 6.485097074 | AF92: -2.354537373 | AG92: 43.76684108 | AH92: 6.942563712 | AI92: 48.00879079
AD93: 0.78 | AE93: 6.942563712 | AF93: -2.479032091 | AG93: 48.00879079 | AH93: 7.44527289 | AI93: 52.87181438
AD94: 0.79 | AE94: 7.44527289 | AF94: -2.612787629 | AG94: 52.87181438 | AH94: 8 | AI94: 58.48370204
AD95: 0.8 | AE95: 8 | AF95: -2.756926037 | AG95: 58.48370204 | AH95: 8.614946931 | AI95: 65.00691563
AD96: 0.81 | AE96: 8.614946931 | AF96: -2.91276658 | AG96: 65.00691563 | AH96: 9.300138313 | AI96: 72.65053435
AD97: 0.82 | AE97: 9.300138313 | AF97: -3.081871876 | AG97: 72.65053435 | AH97: 10.06795762 | AI97: 81.68729925
AD98: 0.83 | AE98: 10.06795762 | AF98: -3.266107749 | AG98: 81.68729925 | AH98: 10.9338843 | AI98: 92.47840777
AD99: 0.84 | AE99: 10.9338843 | AF99: -3.467721823 | AG99: 92.47840777 | AH99: 11.91752577 | AI99: 105.5103707
AD100: 0.85 | AE100: 11.91752577 | AF100: -3.689448085 | AG100: 105.5103707 | AH100: 13.04409171 | AI100: 121.4511478
AD101: 0.86 | AE101: 13.04409171 | AF101: -3.934648006 | AG101: 121.4511478 | AH101: 14.34654873 | AI101: 141.2380374
AD102: 0.87 | AE102: 14.34654873 | AF102: -4.207503991 | AG102: 141.2380374 | AH102: 15.86885246 | AI102: 166.2196913
AD103: 0.88 | AE103: 15.86885246 | AF103: -4.513289071 | AG103: 166.2196913 | AH103: 17.67094255 | AI103: 198.3941117
AD104: 0.89 | AE104: 17.67094255 | AF104: -4.858749789 | AG104: 198.3941117 | AH104: 19.83673469 | AI104: 240.8249022
AD105: 0.9 | AE105: 19.83673469 | AF105: -5.252660309 | AG105: 240.8249022 | AH105: 22.4874406 | AI105: 298.4071677
AD106: 0.91 | AE106: 22.4874406 | AF106: -5.706640075 | AG106: 298.4071677 | AH106: 25.80487805 | AI106: 379.3660171
AD107: 0.92 | AE107: 25.80487805 | AF107: -6.236381745 | AG107: 379.3660171 | AH107: 30.07476094 | AI107: 498.4200652
AD108: 0.93 | AE108: 30.07476094 | AF108: -6.863514266 | AG108: 498.4200652 | AH108: 35.77327935 | AI108: 684.1407409
AD109: 0.94 | AE109: 35.77327935 | AF109: -7.618391607 | AG109: 684.1407409 | AH109: 43.75757576 | AI109: 998.4328066
AD110: 0.95 | AE110: 43.75757576 | AF110: -8.543868477 | AG110: 998.4328066 | AH110: 55.74193548 | AI110: 1598.43912
AD111: 0.96 | AE111: 55.74193548 | AF111: -9.697810156 | AG111: 1598.43912 | AH111: 75.72635815 | AI111: 2998.445394
AD112: 0.97 | AE112: 75.72635815 | AF112: -11.13518459 | AG112: 2998.445394 | AH112: 115.7108434 | AI112: 7998.451632
AD113: 0.98 | AE113: 115.7108434 | AF113: -12.70254914 | AG113: 7998.451632 | AH113: 235.6953908 | AI113: 29998.4566
AD114: 0.99 | AE114: 235.6953908 | AF114: -11.13484628 | AG114: 29998.4566 | AH114: 595.6861489 | AI114: 239998.4606
AD115: =MIN(IF($B$4=0,$F$5/$E$4,$C$5/$B$4),IF($E$4=0,$C$5/$B$4,$F$5/$E$4))-(MIN(IF($B$4=0,$F$5/$E$4,$C$5/$B$4),IF($E$4=0,$C$5/$B$4,$F$5/$E$4))+MIN(IF($H$4=0,$L$5/$K$4,$I$5/$H$4),IF($K$4=0,$I$5/$H$4,$L$5/$K$4)))/250 -> 0.996 | AE115: 595.6861489 | AF115: 20.40565916 | AG115: 239998.4606 | AH115: 2395.681536 | AI115: 599998.4625
AD116: =MIN(IF($B$4=0,$F$5/$E$4,$C$5/$B$4),IF($E$4=0,$C$5/$B$4,$F$5/$E$4))-(MIN(IF($B$4=0,$F$5/$E$4,$C$5/$B$4),IF($E$4=0,$C$5/$B$4,$F$5/$E$4))+MIN(IF($H$4=0,$L$5/$K$4,$I$5/$H$4),IF($K$4=0,$I$5/$H$4,$L$5/$K$4)))/1000 -> 0.999 | AE116: 2395.681536 | AF116: 375.1313359 | AG116: =(AE116-AE115)/(AD116-AD115) -> 599998.4625 | AH116: 0 | AI116: 0

Sheet Notes
A1: ¾ | C1: EQUILIBRATOR
B3: 1) Many calculations are located (and protected) off on the right of each spreadsheet. Be careful not to change or delete them.
B4: 2) Each worksheet is protected, meaning end-users can only change the input cells. This can be turned off under Excel's Review tab with a password. The status of individual cells can be altered under the 'format cells' dialogue.
B5: 3) Do not use 'smoothing' curves for graph as it often confuses the automatically generated y-axis limits.
B6: 4) Additional worksheets can easily be developed by modifying existing ones. The only external value required is the K value, which is generated from from using literature values according to lnK = C1 + C2/T + C3lnT + C4T + C5T^2 + C6T^3. The JANAF database is a good place to find these coefficients.
B7: 5) The free energy is calculated relative to the state of maximum reactants (minimum reaction coordinate).
B8: 6) The slider divides the reaction coordinate into 10,000 steps, but the first and the last are inaccessible to prevent division by zero.
B9: 7) To permanently enable the macros in this program, go to 'Excel Options' under the 'Office Button' in the upper lefthand corner. Change the trust center settings to enable digitally signed macros.
A11: Developed by Prof. Douglas A. Vander Griend, Calvin College, Grand Rapids, MI
